Cogmind - Beta 15 @@@ ROGUE MODE // 2025.08.14 @ 04:46:28 Player: naththebg Result: Destroyed by H-88 Terminator with KE Penetrator Performance ------------- Evolutions (9) 4500 Regions Visited (32) 6400 Robots Destroyed (430) 2150 Value Destroyed (28362) 28362 Prototype IDs (74) 1480 Alien Tech Used (0) 0 Bonus (25896) 25896 TOTAL SCORE: 68788 Bonus ------- High Alert Combat Kills 6930 Follower Combat Kills 10236 Entered Garrisons 2000 Used RIF Installer 7000 Aligned with FarCom 300 Friendly Fire -570 Cogmind --------- Core Integrity 0/1600 Matter 155/300 Energy 98/100 System Corruption 30% Temperature Cool (0) Movement Core (50) Location -1/Command Parts ------- > --- POWER (1) -------- (None) > --- PROPULSION (4) --- (None) > --- UTILITY (16) ----- Relay Coupler [Swarmer] (21) Relay Coupler [Proto] (10) > --- WEAPON (4) ------- (None) > --- INVENTORY (5) ---- Reinforced Quantum Reactor Thermal Barrier Latent Energy Streamer Enhanced Hardcell Cannon Peak State ------------ > --- POWER ------------ Reinforced Quantum Reactor > --- PROPULSION ------- Biometal Heavy Treads High-density Centrium Heavy Treads > --- UTILITY ---------- Experimental Heat Sink High-capacity Storage Unit Advanced Weapon Cycler Advanced Phase Shifter Thermal Barrier Relay Coupler [NC] Relay Coupler [Swarmer] Relay Coupler [Grunt] Relay Coupler [Duelist] Relay Coupler [Sentry] Relay Coupler [Demolisher] Relay Coupler [Hunter] Relay Coupler [Heavy] Relay Coupler [Behemoth] > --- WEAPON ----------- Heavy Linear Accelerator Compact Linear Accelerator Advanced Remote Datajack > --- INVENTORY -------- Quantum Reactor Matter Compressor Layered Heavy Armor Plating Relay Coupler [NC] Relay Coupler [NC] Relay Coupler [Swarmer] Relay Coupler [Sentry] Relay Coupler [Sentry] Relay Coupler [Demolisher] Relay Coupler [Demolisher] Relay Coupler [Specialist] Relay Coupler [Specialist] Relay Coupler [Hunter] Relay Coupler [Hunter] Latent Energy Streamer Enhanced Nova Cannon Heavy Linear Accelerator [Rating: 162] Favorites ----------- Power Quantum Reactor Engine Heavy Deuterium Engine Power Core Nuclear Core Reactor Quantum Reactor Propulsion Armored Wheel Treads Light Treads Leg Carbon-fiber Leg Wheel Armored Wheel Utility High-capacity Storage Unit Device Advanced Weapon Cycler Storage High-capacity Storage Unit Processor Advanced Launcher Guidance Computer Hackware Relay Coupler [NC] Protection Layered Medium Armor Plating Weapon Advanced Remote Datajack Energy Gun Heavy EM Shotgun Energy Cannon Enhanced Nova Cannon Ballistic Gun Helical Railgun Ballistic Cannon Heavy Mass Driver Launcher Precision Rocket Launcher Special Weapon Advanced Remote Datajack Build | -11 -10 -10 -9 -9 -9 -8 -8 -8 -7 -7 -7 -7 -6 -6 -5 -5 -5 -4 -4 -4 -3 -3 -3 -3 -2 -2 -2 -2 -1 -1 -1 -1 ------- Run | Yrd Mat Min Mat Min Exi Min Mat Gar Fac Gar Fac Gar Fac Gar Fac Gar Fac Fac Upp Upp Res Gar Res Gar Res Gar Res Gar Acc Gar Acc Com Slots Evolved 18 | . . . 2 . . . 2 . 2 . . . 2 . 2 . . 2 . . 2 . . . 2 . . . 2 . . . Power . | . . . . . . . . . . . . . . . . . . . . . . . . . . . . . . . . . Propulsion 2 | . . . 1 . . . . . . . . . . . . . . . . . 1 . . . . . . . . . . . Utility 14 | . . . 1 . . . 1 . 2 . . . 2 . 2 . . 2 . . 1 . . . 1 . . . 2 . . . Weapon 2 | . . . . . . . 1 . . . . . . . . . . . . . . . . . 1 . . . . . . . Parts Attached 247 | 6 6 5 9 . 2 1 10 15 5 10 4 8 1 10 1 12 6 3 4 5 3 20 3 24 22 10 . 14 5 7 5 11 Power 22 | 1 . 1 1 . . . 2 2 . 1 3 . . . . 2 . 1 . . . 1 1 2 2 . . 1 . . 1 . Engine 8 | 1 . 1 1 . . . 1 2 . . 2 . . . . . . . . . . . . . . . . . . . . . Core 2 | . . . . . . . 1 . . . 1 . . . . . . . . . . . . . . . . . . . . . Reactor 12 | . . . . . . . . . . 1 . . . . . 2 . 1 . . . 1 1 2 2 . . 1 . . 1 . Propulsion 39 | 2 2 . 4 . . 1 3 . . . . . . . . . . . 2 1 3 2 . 9 2 1 . 3 . . 2 2 Treads 24 | . 2 . 1 . . 1 . . . . . . . . . . . . 1 1 3 2 . 3 2 1 . 3 . . 2 2 Leg 6 | 2 . . 3 . . . . . . . . . . . . . . . 1 . . . . . . . . . . . . . Wheel 9 | . . . . . . . 3 . . . . . . . . . . . . . . . . 6 . . . . . . . . Hover . | . . . . . . . . . . . . . . . . . . . . . . . . . . . . . . . . . Flight . | . . . . . . . . . . . . . . . . . . . . . . . . . . . . . . . . . Utility 128 | 1 3 2 1 . 2 . 2 6 4 7 . 6 1 5 1 9 3 2 2 3 . 14 1 10 13 6 . 8 3 4 2 7 Device 21 | . . 1 . . 1 . . 1 1 . . . . . 1 . . 1 1 3 . 2 . 2 4 1 . 1 . . 1 . Storage 6 | 1 2 . . . 1 . . . . . . . . . . . 1 . . . . . . 1 . . . . . . . . Processor 2 | . . . . . . . . . . . . . . . . . . . . . . . . 2 . . . . . . . . Hackware 78 | . . 1 . . . . 2 3 3 6 . 6 . 5 . 9 2 . . . . 11 1 5 3 3 . 6 1 4 . 7 Protection 21 | . 1 . 1 . . . . 2 . 1 . . 1 . . . . 1 1 . . 1 . . 6 2 . 1 2 . 1 . Artifact . | . . . . . . . . . . . . . . . . . . . . . . . . . . . . . . . . . Weapon 58 | 2 1 2 3 . . . 3 7 1 2 1 2 . 5 . 1 3 . . 1 . 3 1 3 5 3 . 2 2 3 . 2 Energy Gun 7 | 1 . . . . . . . 2 . 1 . . . . . . . . . . . 2 . . 1 . . . . . . . Energy Cannon 5 | . 1 . . . . . . 1 . . . . . 1 . . . . . . . . . . . . . 1 . 1 . . Ballistic Gun 4 | 1 . 1 . . . . 1 . . . . . . . . . . . . . . . . . 1 . . . . . . . Ballistic Cannon 24 | . . . 3 . . . 2 2 . 1 . 1 . . . . 2 . . 1 . 1 . 3 1 3 . 1 1 . . 2 Launcher 9 | . . 1 . . . . . 1 1 . . 1 . 3 . . 1 . . . . . . . . . . . . 1 . . Special Weapon 9 | . . . . . . . . 1 . . 1 . . 1 . 1 . . . . . . 1 . 2 . . . 1 1 . . Impact Weapon . | . . . . . . . . . . . . . . . . . . . . . . . . . . . . . . . . . Slashing Weapon . | . . . . . . . . . . . . . . . . . . . . . . . . . . . . . . . . . Piercing Weapon . | . . . . . . . . . . . . . . . . . . . . . . . . . . . . . . . . . Special Melee Weapon . | . . . . . . . . . . . . . . . . . . . . . . . . . . . . . . . . . Unidentified Prototypes 11 | . . . . . . . . . 1 . 1 . . . . . 2 . . . . . . . 5 1 . . . . 1 . Corrupted Parts 2 | . . 1 . . . . . . . . . . . . . . . . . 1 . . . . . . . . . . . . System Corruption 3 | . . 2 . . . . . . . . . . . . . . . . . 1 . . . . . . . . . . . . Parts Lost 77 | . . 1 5 . . 1 . 1 . . . 1 . 1 . . 2 2 2 . . 4 . 21 3 4 . 4 . . 3 22 Power 5 | . . . 1 . . . . . . . . . . . . . . 1 . . . . . 2 1 . . . . . . . Propulsion 17 | . . . 1 . . 1 . . . . . . . . . . . 1 2 . . . . 6 . 1 . 1 . . . 4 Utility 37 | . . . . . . . . . . . . . . 1 . . 2 . . . . 3 . 10 . 2 . 2 . . 3 14 Weapon 18 | . . 1 3 . . . . 1 . . . 1 . . . . . . . . . 1 . 3 2 1 . 1 . . . 4 Highest Loss Streak 15 | . . 1 2 . . 1 . 1 . . . 1 . 1 . . 1 2 1 . . 3 . 15 1 1 . 1 . . 1 12 To Critical Strikes 1 | . . . . . . . . . . . . . . . . . . . . . . . . 1 . . . . . . . . Average Backups 16 | 4 8 11 13 15 15 15 15 19 19 19 18 18 16 18 16 17 16 13 14 16 17 16 16 13 16 16 17 16 17 16 16 13 Power . | 1 1 1 1 1 1 1 1 2 1 1 1 1 1 1 1 1 1 . . . . . . . . 1 1 1 1 1 1 1 Propulsion 1 | 2 4 5 3 1 1 . . 1 2 2 2 . . . . . 1 1 1 1 1 1 2 1 1 . . . 1 1 1 1 Utility 9 | . 1 2 4 5 5 6 5 9 9 11 11 13 12 11 10 10 8 4 5 7 7 8 7 6 10 12 12 13 11 11 11 8 Weapon 4 | 1 1 2 4 8 7 8 7 6 6 5 4 3 3 4 4 3 5 6 6 6 5 5 5 4 3 1 3 1 3 3 3 2 Tool/Special . | . . . . . . . . . . . . . . . . . . . . . . . . . . . . . . . . . Unused Backups 48 | . . . 2 . . . 3 5 1 4 1 6 . 1 . 2 1 . . . 1 6 1 . 2 2 . 4 3 2 1 . Power 4 | . . . . . . . 2 1 . . 1 . . . . . . . . . . . . . . . . . . . . . Propulsion 5 | . . . 2 . . . . . . . . 2 . . . . . . . . . . . . . . . . . . 1 . Utility 29 | . . . . . . . 1 4 . 4 . 4 . 1 . 2 1 . . . . 4 . . . 1 . 4 1 2 . . Weapon 9 | . . . . . . . . . 1 . . . . . . . . . . . 1 2 . . 2 1 . . 2 . . . Tool/Special 1 | . . . . . . . . . . . . . . . . . . . . . . . 1 . . . . . . . . . Average Slot Usage (%) 85 | . 98 96 92 100 100 97 93 98 99 99 92 91 86 85 87 88 86 72 68 73 80 78 78 70 89 83 84 81 80 78 78 66 Engine 2 | . 14 14 10 11 11 11 7 9 7 2 1 7 6 6 5 . . . . . . . . . . . . . . . . . Reactor 2 | . . . . . . . . . . 4 5 . . . . 4 5 5 5 5 4 4 4 3 4 4 4 4 4 4 4 3 Treads 6 | . 11 28 16 33 33 30 15 . . . . . . . . . . . 3 6 13 11 9 4 4 8 8 7 8 8 8 7 Wheel 8 | . . . . . . . 11 27 23 23 23 23 20 20 17 17 17 10 2 . . . . 6 6 . . . . . . . Device 6 | . . 12 . . . . . 2 6 1 . . . . 4 5 5 9 13 14 23 15 7 3 4 8 13 13 12 8 7 6 Storage 6 | . 14 14 11 11 11 11 9 9 7 7 7 7 6 6 5 5 5 5 5 5 4 4 4 8 4 4 4 4 4 4 4 3 Hackware 27 | . . . 11 11 11 11 18 15 22 26 30 37 33 31 29 34 33 24 21 21 19 28 38 24 33 35 39 35 32 35 36 34 Protection 6 | . 12 1 6 11 11 11 7 8 7 7 7 . 6 6 10 5 5 6 5 5 4 2 4 . 12 5 4 2 8 8 7 2 Energy Gun 1 | . 8 . . . . . . 9 11 1 . . . . . . . . . . . 1 . . 2 . . . . . . . Ballistic Gun 1 | . 14 10 3 . . . 2 4 . . . . . . . . . . . . . . . . . 3 . . . . . . Ballistic Cannon 6 | . . . 14 22 22 22 18 7 1 7 7 7 6 6 5 5 4 5 5 5 4 3 4 5 6 5 6 4 4 3 4 3 Launcher 1 | . . 3 1 . . . . . . 5 . 1 . 1 . . . . 4 5 4 2 . 1 . . . . . 1 3 . Special Weapon 3 | . . . . . . . . 3 6 7 6 4 6 4 5 4 4 4 . . . 1 3 2 4 3 4 3 4 4 4 2 Peak Build Rating 162 | 6 8 15 20 16 23 17 32 39 50 57 57 56 66 71 78 86 87 87 88 101 123 131 124 124 155 157 157 162 155 155 158 149 Average Rating 87 | 3 7 10 16 16 16 16 23 34 47 51 56 52 64 66 76 82 84 84 79 83 116 118 121 83 134 144 152 150 151 147 152 129 On Entrance 76 | . 6 8 15 16 16 17 16 32 39 49 57 55 53 66 68 77 86 83 86 77 101 122 124 124 96 146 157 142 144 155 149 149 Naked Turns . | . . . . . . . . . . . . . . . . . . . . . . . . . . . . . . . . . Heaviest Build 147 | 14 31 34 38 38 58 58 64 80 78 86 86 85 94 107 107 111 113 123 123 109 117 125 104 101 133 115 112 137 147 140 140 116 Greatest Support 165 | 20 40 40 60 60 60 60 60 36 36 36 36 36 36 36 36 36 36 36 28 55 135 160 155 155 160 165 165 165 150 150 160 160 Greatest Overweight (x) 9 | 2 . 1 1 . . 1 4 2 2 2 2 2 2 2 2 3 3 5 9 3 . . . 5 3 . . 1 1 1 . . Average Overweight (x) 1 | . . . . . . . . 1 1 2 2 1 2 2 2 2 2 4 5 2 . . . 1 . . . . . . . . Largest Inventory Capacity 20 | 8 15 15 15 15 20 20 20 20 20 20 20 20 20 20 20 20 20 20 20 20 20 20 20 20 20 20 20 20 20 20 20 20 Average Capacity 19 | 7 11 15 15 15 15 20 20 20 20 20 20 20 20 20 20 20 20 20 20 20 20 20 20 20 20 20 20 20 20 20 20 17 Most Carried 20 | 8 10 13 15 15 16 16 20 20 20 20 20 20 20 20 20 20 20 15 18 18 20 20 20 20 20 20 20 20 20 20 20 20 Average Carried 17 | 4 8 11 13 15 15 15 15 19 19 19 19 19 17 19 17 18 18 14 15 18 18 19 19 15 18 18 20 19 19 19 19 16 Final Capacity 20 | 8 15 15 15 15 20 20 20 20 20 20 20 20 20 20 20 20 20 20 20 20 20 20 20 20 20 20 20 20 20 20 20 5 Final Carried 20 | 6 10 13 15 15 16 15 20 20 20 20 20 20 20 20 16 20 15 14 18 18 20 20 20 19 18 20 20 20 20 20 18 4 Class Distribution -------------------- 45% | Botlord-Tank 15% | Botlord-Skirmisher 11% | Bothacker-Skirmisher 11% | Mutant 4% | Botlord-Mutant 3% | Hacker-Skirmisher Dominant Class ---------------- Mutant | -10/Materials Mutant | -10/Mines Mutant | -9/Materials Mutant | -9/Mines Mutant | -9/Exiles Mutant | -8/Mines Hacker-Mutant | -8/Materials Bothacker-Tank | -8/Garrison Bothacker-Skirmisher | -7/Factory Bothacker-Skirmisher | -7/Garrison Bothacker-Skirmisher | -7/Factory Bothacker-Skirmisher | -7/Garrison Botlord-Skirmisher | -6/Factory Botlord-Skirmisher | -6/Garrison Botlord-Tank | -5/Factory Botlord-Skirmisher | -5/Garrison Botlord-Skirmisher | -5/Factory Botlord-Tank | -4/Factory Botlord-Tank | -4/Upper Caves Botlord-Tank | -4/Upper Caves Botlord-Tank | -3/Research Botlord-Tank | -3/Garrison Botlord-Tank | -3/Research Botlord-Mutant | -3/Garrison Botlord-Tank | -2/Research Botlord-Tank | -2/Garrison Botlord-Tank | -2/Research Botlord-Tank | -2/Garrison Botlord-Tank | -1/Access Botlord-Tank | -1/Garrison Botlord-Tank | -1/Access Botlord-Mutant | -1/Command Resources | -11 -10 -10 -9 -9 -9 -8 -8 -8 -7 -7 -7 -7 -6 -6 -5 -5 -5 -4 -4 -4 -3 -3 -3 -3 -2 -2 -2 -2 -1 -1 -1 -1 ----------- Run | Yrd Mat Min Mat Min Exi Min Mat Gar Fac Gar Fac Gar Fac Gar Fac Gar Fac Fac Upp Upp Res Gar Res Gar Res Gar Res Gar Acc Gar Acc Com Matter Collected 20520 | 226 21 280 714 . . 160 402 958 300 476 258 683 184 845 305 867 1033 614 228 97 64 1158 663 1233 2121 1671 . 2314 378 1334 437 496 Remotely . | . . . . . . . . . . . . . . . . . . . . . . . . . . . . . . . . . Salvage Created 15485 | . 346 102 692 . . 63 418 1057 706 216 194 308 368 752 107 488 862 700 132 11 . 777 202 1089 937 1179 . 1518 505 1150 145 461 Parts 711 | . 19 16 50 . . 1 19 63 29 15 9 24 14 42 3 19 33 29 7 . . 27 10 52 45 41 . 59 26 43 4 12 Haulers Intercepted 7 | . . . 3 . . . 2 . . . 1 . . . . . 1 . . . . . . . . . . . . . . . Recyclers Shooed 2 | . . . . . . . . . 1 . . . . . 1 . . . . . . . . . . . . . . . . . Parts Field Recycled . | . . . . . . . . . . . . . . . . . . . . . . . . . . . . . . . . . Retrieved Matter . | . . . . . . . . . . . . . . . . . . . . . . . . . . . . . . . . . Parts Self-Destructed 12 | . . . . . . . . . . . . . . . . . . . 8 4 . . . . . . . . . . . . Prevented . | . . . . . . . . . . . . . . . . . . . . . . . . . . . . . . . . . Kills | -11 -10 -10 -9 -9 -9 -8 -8 -8 -7 -7 -7 -7 -6 -6 -5 -5 -5 -4 -4 -4 -3 -3 -3 -3 -2 -2 -2 -2 -1 -1 -1 -1 ------- Run | Yrd Mat Min Mat Min Exi Min Mat Gar Fac Gar Fac Gar Fac Gar Fac Gar Fac Fac Upp Upp Res Gar Res Gar Res Gar Res Gar Acc Gar Acc Com Combat Hostiles Destroyed 361 | . 9 9 17 . . 2 3 28 10 13 4 14 4 31 . 14 18 13 8 . . 21 6 29 17 23 . 22 8 27 2 9 Melee 1 | . . . . . . . . . . . . . . . . . . . . . . . . . . . . . . 1 . . Guns 37 | . 6 3 3 . . . . 12 4 1 . . . . . . . . . . . . . . . 8 . . . . . . Cannons 188 | . 1 3 9 . . 2 3 9 5 1 4 7 4 7 . 9 11 11 1 . . 10 2 11 16 15 . 21 7 8 2 9 AOE 131 | . 2 3 5 . . . . 6 1 10 . 7 . 24 . 5 7 2 7 . . 11 3 18 1 . . 1 . 18 . . Classes Destroyed 24 | . 3 . 7 . . . 1 4 . . . 1 1 . . . 2 . . 1 . 1 . 1 1 1 . . . . . . Worker 10 | . . . 2 . . . . . . . . . 2 . . . 4 1 . . . . . . 1 . . . . . . . Builder 5 | . . . 1 . . . . . 1 . . . . . . . . . . . . . . . 3 . . . . . . . Tunneler 1 | . . . . . . . . . . . . . . . . . . . . . . . . . 1 . . . . . . . Hauler 7 | . . . 3 . . . 2 . . . 1 . . . . . 1 . . . . . . . . . . . . . . . Recycler 11 | . . . 1 . . . 3 . 2 . . . 1 . 1 . 1 . . . . . . . . . . . . . . 2 Mechanic 5 | . . . . . . . . . . . . . 2 1 . . 1 . . . . . . . . . . . . . . 1 Operator 4 | . 1 . 3 . . . . . . . . . . . . . . . . . . . . . . . . . . . . . Watcher 12 | . . . 3 . . . 2 . 2 . . . 1 . . . 1 1 . . . 1 . . 1 . . . . . . . Swarmer 127 | . 2 9 3 . . . . 4 3 9 . 8 . 24 . 6 5 2 7 . . 7 3 15 . 6 . 6 . 6 . 2 Cutter 9 | . . . . . . . . 2 . . . 2 . . . . . . . . . 3 . . . . . . . 2 . . Saboteur 2 | . . . . . . . . . . . . . . . . . 1 . . . . . . . . . . 1 . . . . Grunt 107 | . 7 . 7 . . 2 1 8 3 2 2 1 . 5 . 4 5 6 . . . 6 1 6 7 9 . 6 3 13 2 1 Brawler 6 | . . . . . . . . . . . 1 . . 2 . 1 . . . . . . . . . 1 . . 1 . . . Duelist 7 | . . . 1 . . . . 1 1 . . 1 . . . . 1 . . . . . . . 1 1 . . . . . . Protector 2 | . . . . . . . . . . . . . . . . . . . . . . . . 1 1 . . . . . . . Sentry 26 | . . . 6 . . . 1 5 1 . 1 . 2 . . 1 1 3 2 . . . . . . . . 1 . . . 2 Demolisher 2 | . . . . . . . . . . . . . . . . . 1 . . . . . 1 . . . . . . . . . Specialist 2 | . . . . . . . . 1 . . . . . . . . . . . . . . 1 . . . . . . . . . Hunter 23 | . . . . . . . . 2 1 2 . 1 . 1 . . 2 2 . . . 1 . 3 2 1 . 2 . 3 . . Programmer 47 | . . . . . . . 1 4 1 . . 1 2 . . 3 2 . . . . 3 . 4 6 2 . 7 4 4 . 3 Heavy 4 | . . . . . . . . . . . . 1 . . . . 1 . . . . . . . 1 . . . . . . 1 Behemoth 6 | . . . . . . . . . . . . . . . . . . . . . . 1 . 1 . 2 . 2 . . . . Executioner 2 | . . . . . . . . . . . . . . . . . . . . . . . . . . 1 . 1 . . . . Decomposer 1 | . . . . . . . . . . . . . . . . . . . 1 . . . . . . . . . . . . . Samaritan 1 | . . . . . . . . . . . . . . . . . . . . 1 . . . . . . . . . . . . Savage 1 | . . . . . . . . 1 . . . . . . . . . . . . . . . . . . . . . . . . Infiltrator 2 | . . . . . . . . . . . . . . . . . . . . . . . 1 . 1 . . . . . . . Best Kill Streak 14 | . 5 3 6 . . 2 2 4 5 5 1 5 2 6 1 5 4 5 4 . . 6 3 9 8 10 . 4 3 14 2 6 Combat Bots Only 14 | . 5 3 4 . . 2 1 4 4 5 1 5 1 6 . 5 3 4 4 . . 6 3 9 3 10 . 4 3 14 2 3 Max Kills in Single Turn 4 | . 2 1 2 . . 1 1 4 2 2 1 2 2 4 1 4 4 2 3 1 . 2 1 3 2 2 . 2 1 4 1 1 Gunslinging . | . . . . . . . . . . . . . . . . . . . . . . . . . . . . . . . . . Exploded 4 | . 2 1 2 . . . . 4 1 2 . 2 . 4 . 4 3 2 3 . . 2 1 3 1 . . 1 . 4 . . Melee 1 | . . . . . . . . . . . . . . . . . . . . . . . . . . . . . . 1 . . Uniques/NPCs Destroyed . | . . . . . . . . . . . . . . . . . . . . . . . . . . . . . . . . . Combat | -11 -10 -10 -9 -9 -9 -8 -8 -8 -7 -7 -7 -7 -6 -6 -5 -5 -5 -4 -4 -4 -3 -3 -3 -3 -2 -2 -2 -2 -1 -1 -1 -1 -------- Run | Yrd Mat Min Mat Min Exi Min Mat Gar Fac Gar Fac Gar Fac Gar Fac Gar Fac Fac Upp Upp Res Gar Res Gar Res Gar Res Gar Acc Gar Acc Com Hostile Shots Fired 2310 | . 33 53 90 . . 33 9 86 90 23 11 28 24 72 2 37 34 80 23 2 . 212 35 410 184 163 2 171 33 44 47 279 Missed 704 | . 16 12 28 . . 7 3 27 37 8 2 5 14 30 1 10 8 27 7 1 . 61 15 115 51 44 . 53 11 7 14 90 Hits 1606 | . 17 41 62 . . 26 6 59 53 15 9 23 10 42 1 27 26 53 16 1 . 151 20 295 133 119 2 118 22 37 33 189 Melee 21 | . . . 2 . . 2 . 2 . . . 3 . . . . . . . . . 2 . . 4 1 . 1 . 3 . 1 Projectile 1585 | . 17 41 60 . . 24 6 57 53 15 9 20 10 42 1 27 26 53 16 1 . 149 20 295 129 118 2 117 22 34 33 188 AOE 18 | . . . . . . . . . . 1 . 1 . . . . 2 . . . . 2 . 1 . . . 1 . 3 1 6 Critical Strikes 99 | . . . 2 . . 3 . 4 1 . . 4 1 1 1 1 3 6 . . . 12 2 21 11 3 . 5 3 2 . 13 Actively Blocked 13 | . . . . . . . . . . . . . . . . . . . . . . 12 . . 1 . . . . . . . Part Disruptions 4 | . . . . . . . . . . . . . . . . . . . . . . . . . . . . . 2 1 . 1 Damage Taken 32591 | . 180 439 918 . . 428 89 861 615 509 212 501 142 826 52 416 1161 975 246 19 . 2579 351 5310 3089 2232 23 2054 455 1068 914 5927 Core 3811 | . 31 79 127 . . 58 . 174 24 55 22 95 . 48 52 62 108 28 16 . . 89 . 600 133 239 . 164 . 45 161 1401 Absorbed by Shields 3924 | . . . . . . . . 32 . . . . . . . 148 . . . . . 354 101 1207 338 1054 . 632 . 32 . 26 Reduced by Siege Mode 725 | . . . . . . . . . . . . . . . . . . . . . . 110 . 336 30 143 . 106 . . . . Redirected to Shielding 117 | . 6 6 . . . . . . . . . . . . . . . . . . . . . . 47 45 6 7 . . . . Ignored by Resistances 1285 | . . . . . . . . . . . . . . . . . . 232 . . . 384 . . 31 68 23 468 79 . . . Regen/Repaired (Parts) 3451 | . . . 255 . . . . 144 322 352 19 348 50 370 109 334 787 361 . . . . . . . . . . . . . . Core Remaining (%) 72 | 100 . 56 . . . 53 . 68 . . . 72 . 94 . . 77 . . 96 . . . 47 . . . 63 . . . . Volleys Fired 1610 | . 29 29 78 1 . 17 23 94 44 59 36 45 20 79 11 70 92 44 7 3 . 90 43 95 114 111 1 158 31 72 50 64 Largest 4 | . 2 2 2 2 . 2 3 3 2 2 1 1 1 2 1 2 2 1 2 1 . 2 1 2 2 4 1 2 2 2 1 2 Hottest 218 | . 80 80 80 60 . 60 97 147 122 117 65 65 65 125 65 108 108 65 108 65 . 131 65 125 133 218 10 190 190 188 68 188 Shots Fired 2144 | . 58 41 128 2 . 31 63 182 73 62 36 45 20 81 11 71 93 44 9 3 . 100 45 102 192 204 1 204 46 75 50 72 Gun 353 | . 47 12 30 . . . 13 96 22 2 . . . . . . . . . . . 29 . 1 18 83 . . . . . . Cannon 1286 | . 11 24 83 2 . 31 50 72 39 35 18 28 15 51 4 47 39 38 6 3 . 47 17 83 138 91 . 153 34 43 19 65 Launcher 114 | . . 5 15 . . . . 5 . 12 2 6 . 12 . 2 6 3 3 . . 17 3 6 4 . . . . 10 . 3 Special 391 | . . . . . . . . 9 12 13 16 11 5 18 7 22 48 3 . . . 7 25 12 32 30 1 51 12 22 31 4 Kinetic 1317 | . 29 12 103 2 . 31 63 102 20 35 18 28 15 50 4 47 39 38 6 3 . 47 17 81 146 166 . 108 19 41 19 28 Thermal 190 | . 11 24 5 . . . . 4 19 2 . . . . . . . . . . . 29 . 1 . . . 45 15 2 . 33 Explosive 114 | . . 5 15 . . . . 5 . 12 2 6 . 12 . 2 6 3 3 . . 17 3 6 4 . . . . 10 . 3 Electromagnetic 132 | . 18 . 5 . . . . 62 22 . . . . 1 . . . . . . . . . 2 10 8 . . . . . 4 Robot Hit Streak 26 | . 8 3 8 . . 7 3 11 8 17 20 4 8 17 12 8 7 7 7 3 . 17 10 15 9 26 10 16 22 16 6 11 Robot Miss Streak 6 | . 5 6 3 . . 3 6 4 4 1 3 4 2 2 1 2 4 3 1 . . 4 3 2 4 2 . 3 3 2 5 2 Penetration Max 1 | . . . . . . . . . . . . 1 1 . . 1 1 1 . . . . . . . 1 . 1 . . . . Secondary Targets 4 | . 1 . . . . . . 3 . . . . . . . . . . . . . . . . . . . . . . . . Max Gunslinging Chain 1 | . 1 . . . . . . 1 . . . . . . . . . . . . . . . . . . . . . . . . Shots Hit Robots 1290 | . 34 14 72 . . 20 25 103 47 23 16 19 16 46 8 43 53 27 4 2 . 70 31 76 115 139 1 127 29 53 28 49 Core Hits 656 | . 17 10 44 . . 5 13 55 20 19 5 17 7 46 1 11 34 22 11 . . 45 9 55 47 41 . 40 9 42 2 29 Critical Kills 3 | . . . . . . . . . . . . . . . . . . . . . . . . . . 1 . 1 1 . . . Critical Parts Destroyed . | . . . . . . . . . . . . . . . . . . . . . . . . . . . . . . . . . Critical Strikes 73 | . . . 1 . . 1 2 3 . . 2 1 4 3 2 9 3 3 . . . 6 1 11 3 4 . 6 4 2 . 2 Burn 3 | . . . . . . . . . . . . . . . . . . . . . . 3 . . . . . . . . . . Meltdown 2 | . . . . . . . . . . . . . . . . . . . . . . . . . . . . 1 1 . . . Destroy 1 | . . . . . . . . . . . . . . . . . . . . . . . . . . 1 . . . . . . Blast 67 | . . . 1 . . 1 2 3 . . 2 1 4 3 2 9 3 3 . . . 3 1 11 3 3 . 5 3 2 . 2 Melee Attacks . | . . . . . . . . . . . . . . . . . . . . . . . . . . . . . . . . . Impact . | . . . . . . . . . . . . . . . . . . . . . . . . . . . . . . . . . Slashing . | . . . . . . . . . . . . . . . . . . . . . . . . . . . . . . . . . Piercing . | . . . . . . . . . . . . . . . . . . . . . . . . . . . . . . . . . Sneak Attacks . | . . . . . . . . . . . . . . . . . . . . . . . . . . . . . . . . . Combat Hostiles . | . . . . . . . . . . . . . . . . . . . . . . . . . . . . . . . . . Follow-up Attacks . | . . . . . . . . . . . . . . . . . . . . . . . . . . . . . . . . . Damage Inflicted 64661 | . 623 491 1886 . . 363 530 2428 1116 1166 709 1532 1168 4425 162 2645 3559 2587 992 167 . 5602 1053 5433 5064 4074 . 6639 1196 4938 430 3683 Guns 4655 | . 379 76 179 . . . 109 1049 351 34 . . . . . . . . . . . 758 . 30 254 1436 . . . . . . Cannons 39983 | . 123 123 877 . . 356 421 823 765 140 621 864 911 1956 162 2280 1521 2089 321 167 . 2192 592 3099 4140 2597 . 6621 1183 2080 421 2538 Explosions 19890 | . 115 281 829 . . . . 556 . 992 88 658 257 2469 . 365 2038 498 671 . . 2652 424 2304 670 41 . . . 2849 . 1133 Melee . | . . . . . . . . . . . . . . . . . . . . . . . . . . . . . . . . . Ramming 133 | . 6 11 1 . . 7 . . . . . 10 . . . . . . . . . . 37 . . . . 18 13 9 9 12 Kinetic 38822 | . 211 76 968 . . 356 530 1065 372 140 621 864 911 1950 162 2280 1521 2089 321 167 . 2192 592 3099 4273 3956 . 5515 596 2040 421 1534 Thermal 5742 | . 238 123 52 . . . . 170 393 34 . . . . . . 1029 . . . . 758 . 229 . . . 1106 587 40 . 983 Explosive 17963 | . . 281 829 . . . . 458 . 992 88 658 227 2434 . 365 835 498 671 . . 2652 424 2014 670 . . . . 2849 . 1018 Electromagnetic 2001 | . 168 . 36 . . . . 735 351 . . . 30 41 . . 174 . . . . . . 91 121 118 . . . . . 136 Impact . | . . . . . . . . . . . . . . . . . . . . . . . . . . . . . . . . . Slashing . | . . . . . . . . . . . . . . . . . . . . . . . . . . . . . . . . . Piercing . | . . . . . . . . . . . . . . . . . . . . . . . . . . . . . . . . . Highest Corruption 30 | . . 2 . . . . 6 10 . . . . . 2 . 1 5 . . 1 . 1 2 16 5 12 12 19 2 3 5 30 Average Corruption 7 | . . 2 . . . . 4 9 . . . . . 2 . 1 3 . . 1 . 1 1 14 1 10 12 17 1 2 3 9 Corruption Purged . | . . . . . . . . . . . . . . . . . . . . . . . . . . . . . . . . . Corruption Blocked . | . . . . . . . . . . . . . . . . . . . . . . . . . . . . . . . . . Effects 408 | . . . . . . . 3 65 . . . . . 9 . 4 25 . . 1 . 2 16 53 12 71 2 102 2 11 8 22 Message Errors 92 | . . . . . . . 1 10 . . . . . 4 . . 9 . . . . . 3 11 2 15 . 27 1 2 1 6 Matter Fused 90 | . . . . . . . . 18 . . . . . 2 . . 3 . . . . . 4 11 3 14 . 24 1 5 2 3 Heat Flow Errors 51 | . . . . . . . . 5 . . . . . . . 1 4 . . . . . 5 10 1 9 1 9 . 2 . 4 Energy Discharges 48 | . . . . . . . 1 6 . . . . . 1 . 2 4 . . . . . 1 7 1 10 1 11 . . 1 2 Parts Rejected 5 | . . . . . . . . 1 . . . . . . . . . . . . . . . 1 . 1 . 1 . . . 1 Parts Fused 5 | . . . . . . . . . . . . . . . . . 1 . . . . . . 1 . 1 . 2 . . . . Data Loss (minor) 45 | . . . . . . . . 11 . . . . . 1 . 1 3 . . 1 . 1 1 5 2 8 . 6 . 1 2 2 Data Loss (major) 17 | . . . . . . . . 3 . . . . . 1 . . 1 . . . . . . 3 . 1 . 5 . . 2 1 Misfires 21 | . . . . . . . . 5 . . . . . . . . . . . . . . 2 1 2 4 . 7 . . . . Alerts 14 | . . . . . . . 1 2 . . . . . . . . . . . . . 1 . 2 1 5 . 2 . . . . Misdirections 3 | . . . . . . . . . . . . . . . . . . . . . . . . . . . . 1 . . . 2 Weapon Failures 17 | . . . . . . . . 4 . . . . . . . . . . . . . . . 1 . 3 . 7 . 1 . 1 Overload Shots . | . . . . . . . . . . . . . . . . . . . . . . . . . . . . . . . . . Overflow Damage 3566 | . . 2 33 . . . . 52 62 51 11 207 174 93 15 407 319 95 110 49 . 269 41 192 300 38 . 544 88 180 . 234 Projectiles 2774 | . . . . . . . . 19 62 . 11 190 147 . 15 362 205 95 81 49 . 135 41 100 286 38 . 544 88 120 . 186 Explosions 792 | . . 2 33 . . . . 33 . 51 . 17 27 93 . 45 114 . 29 . . 134 . 92 14 . . . . 60 . 48 Melee . | . . . . . . . . . . . . . . . . . . . . . . . . . . . . . . . . . Knockbacks 157 | . . 1 3 . . 6 3 7 2 1 3 3 2 6 1 9 3 15 1 . . 9 5 14 24 15 . 14 2 5 3 . Impact 1 | . . 1 . . . . . . . . . . . . . . . . . . . . . . . . . . . . . . Kinetic 141 | . . . 3 . . 6 3 7 2 1 3 3 2 6 1 9 3 10 1 . . 8 4 13 21 12 . 14 2 5 2 . Secondary 15 | . . . . . . . . . . . . . . . . . . 5 . . . 1 1 1 3 3 . . . . 1 . Self-Inflicted Damage 891 | . . 108 60 . . . . 25 . 123 . 35 . 144 . 20 39 . 14 . . 105 . 80 . . . 86 . 47 . 5 Shots 30 | . . 3 2 . . . . 1 . 4 . 2 . 6 . 1 2 . 1 . . 3 . 3 . . . 1 . 1 . . Rammed 20 | . . 3 . . . 1 . . . . . 1 . . . . . . . . . . 2 . . . . 2 2 3 2 4 Targets Rammed 22 | . 1 3 1 . . 1 . . . . . 1 . . . . . . . . . . 2 . . . . 2 2 3 2 4 Kicked 2 | . 1 . 1 . . . . . . . . . . . . . . . . . . . . . . . . . . . . . Crushed . | . . . . . . . . . . . . . . . . . . . . . . . . . . . . . . . . . Highest Temperature 573 | . 234 198 88 9 . 262 68 361 27 57 76 28 58 116 64 142 277 180 26 6 . 266 153 261 303 378 113 439 342 291 276 573 Average Temperature 74 | . 75 66 28 6 . 138 24 79 7 33 22 9 18 27 27 36 52 69 10 4 . 78 35 89 124 123 83 81 115 48 96 183 Received Heat Transfer 4653 | . 81 . 318 . . 234 9 222 132 12 36 48 63 123 27 106 144 380 . . . 332 63 279 403 1058 . 270 45 54 30 184 Effects 18 | . . . . . . . . 1 . . . . . . . . . . . . . . . . . . . 5 . . 1 11 Shutdowns 2 | . . . . . . . . 1 . . . . . . . . . . . . . . . . . . . . . . . 1 Energy Bleed 5 | . . . . . . . . . . . . . . . . . . . . . . . . . . . . . . . 1 4 Interference 6 | . . . . . . . . . . . . . . . . . . . . . . . . . . . . 4 . . . 2 Matter Decay 3 | . . . . . . . . . . . . . . . . . . . . . . . . . . . . . . . . 3 Short Circuit 1 | . . . . . . . . . . . . . . . . . . . . . . . . . . . . . . . . 1 Damage (minor) 1 | . . . . . . . . . . . . . . . . . . . . . . . . . . . . 1 . . . . Siege Activations 18 | . . . . . . . . . . . . . . . . . . . . . . 3 . 3 1 6 . 4 . 1 . . Total Turns 348 | . . . . . . . . . . . . . . . . . . . . . . 37 . 60 36 120 . 89 . 6 . . Longest Duration 50 | . . . . . . . . . . . . . . . . . . . . . . 24 . 46 36 49 . 50 . 6 . . Martial Activations . | . . . . . . . . . . . . . . . . . . . . . . . . . . . . . . . . . Shielding Activations . | . . . . . . . . . . . . . . . . . . . . . . . . . . . . . . . . . Robots Disrupted . | . . . . . . . . . . . . . . . . . . . . . . . . . . . . . . . . . Combat Hostiles . | . . . . . . . . . . . . . . . . . . . . . . . . . . . . . . . . . Robots Corrupted 3 | . . . . . . . . 1 . . . . . . . . . . . . . . 1 . 1 . . . . . . . Combat Hostiles 2 | . . . . . . . . 1 . . . . . . . . . . . . . . 1 . . . . . . . . . Parts Fried 16 | . . . . . . . . 4 3 . . . . . . . . . . . . . . . 8 1 . . . . . . Impact Corruptions 4 | . . . . . . . . . . . . . . . . . . . . . . 1 1 . 2 . . . . . . . Robots Melted 5 | . . . . . . . . . . 1 . . . . . . . . . . . 2 . . . . . 1 1 . . . Combat Hostiles 3 | . . . . . . . . . . 1 . . . . . . . . . . . . . . . . . 1 1 . . . Parts Melted 10 | . . 1 . . . . . . . 1 . . . . . . 1 . . . . 3 . . . . . 2 2 . . . Heat Transferred 6113 | . 409 259 111 . . . . 186 444 75 . . . . . . 700 . . . . 1472 . 237 . . . 888 444 37 . 851 Parts Sabotaged 3 | . . . . . . . . . . . . . . . . . . . . . . . . . . . . . . . . 3 Parts Stolen . | . . . . . . . . . . . . . . . . . . . . . . . . . . . . . . . . . Parts Stripped . | . . . . . . . . . . . . . . . . . . . . . . . . . . . . . . . . . Power Chain Reactions 6 | . 2 . . . . . . 2 1 . . . . . . . . . . . . . . 1 . . . . . . . . Latent Energy Used 619 | . . . . . . . . . . . . . . 81 . . . . . . . . . 73 . 286 . . . . . 179 LE Corruption 15 | . . . . . . . . . . . . . . 2 . . . . . . . . . 2 . 6 . . . . . 5 Alert | -11 -10 -10 -9 -9 -9 -8 -8 -8 -7 -7 -7 -7 -6 -6 -5 -5 -5 -4 -4 -4 -3 -3 -3 -3 -2 -2 -2 -2 -1 -1 -1 -1 ------- Run | Yrd Mat Min Mat Min Exi Min Mat Gar Fac Gar Fac Gar Fac Gar Fac Gar Fac Fac Upp Upp Res Gar Res Gar Res Gar Res Gar Acc Gar Acc Com Maximum Alert Level 5 | . . . 1 . . . . 4 3 4 3 4 2 5 3 4 5 5 . . . 4 2 3 3 4 2 5 4 5 3 1 Low Security (%) 14 | 100 100 100 44 100 . 100 100 10 . . . . . . . . . . . . 100 16 2 . . . . . . . . 41 Level 1 9 | . . . 55 . . . . 22 10 3 . . . . . . . . . . . 2 42 38 11 . . . . . . 58 Level 2 28 | . . . . . . . . 44 87 18 78 20 100 16 13 18 3 . . . . 38 55 52 65 32 100 14 . . 28 . Level 3 30 | . . . . . . . . 18 1 52 21 75 . 31 86 53 43 31 . . . 43 . 8 22 45 . 45 65 21 71 . Level 4 13 | . . . . . . . . 4 . 25 . 4 . 35 . 27 20 31 . . . . . . . 22 . 32 34 62 . . Level 5 4 | . . . . . . . . . . . . . . 16 . . 32 36 . . . . . . . . . 7 . 15 . . High Security . | . . . . . . . . . . . . . . . . . . . . . . . . . . . . . . . . . Max Security . | . . . . . . . . . . . . . . . . . . . . . . . . . . . . . . . . . Peak Influence 2033 | . 100 167 373 36 . 30 66 1109 706 1348 845 1127 674 1884 989 1434 2033 1660 . . 149 1156 683 792 761 1134 658 1790 1236 1690 1013 336 Initial 1073 | . . 24 1 36 . . . 39 581 320 707 479 497 471 989 481 752 991 . . 149 9 650 256 445 548 630 493 1073 960 1013 336 Average 728 | . 44 70 214 6 . 2 13 556 498 974 640 893 578 1180 872 988 1249 1320 . . 71 656 442 465 573 880 626 1073 1052 1418 790 221 Influence Increases 21499 | . 239 293 704 . . 40 202 1080 453 1058 675 720 487 1443 139 1093 2784 951 288 18 34 1267 571 866 1058 913 48 1557 634 1190 353 341 Destroy 0b10 Robot/C 8505 | . 180 180 340 . . 40 60 580 240 480 270 285 105 555 45 435 810 390 195 15 . 480 204 384 408 420 24 492 216 480 84 108 Destroy 0b10 Robot/NC 411 | . 5 . 65 . . . 35 . 35 5 16 . 28 8 4 . 76 16 . . . 16 9 12 42 . . 18 9 . 3 9 Destroy Leader 1158 | . 30 30 112 . . . 28 20 46 20 80 24 58 24 8 24 134 74 16 . . 48 36 54 86 30 . 30 32 54 24 36 Allied During Kill 4759 | . . . . . . . . 11 60 124 209 122 82 456 56 361 967 261 77 3 . 110 194 122 307 103 24 268 256 469 107 10 Successful Hack 231 | . 9 . 39 . . . 2 10 12 28 6 22 25 11 18 . . . . . 11 . . . . 14 . . 15 9 . . Select Force Hacks 53 | . . . . . . . 30 . . . . . . . . . . . . . 23 . . . . . . . . . . . Disable Machine 1113 | . . 60 60 . . . 45 15 15 15 72 24 168 . . 12 336 84 . . . 36 18 45 9 27 . 18 18 9 18 9 Anti-Garrison Action 2451 | . . . . . . . . 200 . 263 . 152 . 265 . 189 113 . . . . 249 . 180 . 240 . 390 . 120 90 . Destroy Structure 2443 | . . 23 88 . . . 2 109 15 123 22 91 21 124 8 60 348 126 . . . 316 110 69 206 52 . 332 88 40 18 52 Lose Combat Pursuer 375 | . 15 . . . . . . 135 30 . . . . . . 12 . . . . . 12 . . . 27 . 9 . 9 9 117 Influence Decreases 21376 | . 177 350 615 94 . 40 142 31 1104 168 1338 456 762 233 1335 347 2193 1378 1114 568 243 124 1385 416 1119 523 511 425 1223 701 1517 744 Entered New Map 9527 | . . 38 4 58 . . . 21 528 138 641 206 452 203 895 207 682 1034 592 148 73 4 506 86 347 183 491 165 717 241 677 190 Time Decay 6180 | . 177 302 411 36 . 40 138 . 386 . 422 . 310 . 190 . 526 254 482 380 170 . 404 . 542 . 20 . 386 . 310 294 Lost Part 760 | . . 10 50 . . . . 10 . . . 10 . 10 . . 20 20 20 . . 40 . 210 30 40 . 40 . . 30 220 Lost Ally 3230 | . . . . . . . . . 40 30 . 90 . 20 100 140 440 70 20 40 . 80 200 120 200 300 . 220 120 460 500 40 Purge Threat 1679 | . . . 150 . . . 4 . 150 . 275 150 . . 150 . 525 . . . . . 275 . . . . . . . . . Squads Dispatched 67 | . 2 . 1 . . . 1 . 2 . 6 . 2 . 2 . 11 6 . . 1 . 3 . 14 . 1 . 4 . 9 2 Investigation 4 | . 1 . . . . . 1 . . . 1 . . . . . . . . . 1 . . . . . . . . . . . Extermination 17 | . . . . . . . . . 1 . 2 . 1 . 1 . 2 . . . . . 2 . 4 . . . 2 . 1 1 Reinforcement 18 | . 1 . 1 . . . . . 1 . 2 . 1 . . . 3 3 . . . . . . 3 . . . . . 2 1 Assault 16 | . . . . . . . . . . . . . . . . . 6 3 . . . . 1 . 1 . . . 2 . 3 . Garrison 12 | . . . . . . . . . . . 1 . . . 1 . . . . . . . . . 6 . 1 . . . 3 . Intercept . | . . . . . . . . . . . . . . . . . . . . . . . . . . . . . . . . . Searches Triggered . | . . . . . . . . . . . . . . . . . . . . . . . . . . . . . . . . . Construction Impeded 2 | . . . 1 . . . . . . . . . 1 . . . . . . . . . . . . . . . . . . . Haulers Reinforced 3 | . . . . . . . . . . . . . . . . . 1 . . . . . . . 1 . . . . . 1 . Active Scanning Responses . | . . . . . . . . . . . . . . . . . . . . . . . . . . . . . . . . . Cargo Convoy Interrupts 1 | . . . . . . . . . . . . . . . . . 1 . . . . . . . . . . . . . . . Alert ID Control Effect 14 | . . . . . . . . . . . . . . . . . . . . . . . . . . . . . . 1 12 1 Stealth | -11 -10 -10 -9 -9 -9 -8 -8 -8 -7 -7 -7 -7 -6 -6 -5 -5 -5 -4 -4 -4 -3 -3 -3 -3 -2 -2 -2 -2 -1 -1 -1 -1 --------- Run | Yrd Mat Min Mat Min Exi Min Mat Gar Fac Gar Fac Gar Fac Gar Fac Gar Fac Fac Upp Upp Res Gar Res Gar Res Gar Res Gar Acc Gar Acc Com Distress Signals 16 | . . . 6 . . . 2 . . . 2 . . . . . 3 . . . . . 1 . 2 . . . . . . . Communications Jammed 974 | . . . . . . . . . . . . . . . . 86 486 . . . . 26 30 39 122 . . . 88 . 91 6 Distress Signals 966 | . . . . . . . . . . . . . . . . 86 485 . . . . 26 30 39 116 . . . 88 . 90 6 Times Spotted 852 | . 13 9 23 . . 3 8 32 22 23 22 18 15 44 5 52 81 28 10 2 . 37 29 38 52 51 1 57 20 50 41 66 Peak Tracking Total 82 | . 3 3 7 . . 3 4 4 4 5 5 5 2 5 3 10 11 5 5 2 . 5 4 9 5 8 1 7 5 10 7 82 Tactical Retreats 17 | . 1 . . . . . . 4 2 . . . . . . 1 . . . . . 1 . . . 2 . 1 . 1 1 3 Traps | -11 -10 -10 -9 -9 -9 -8 -8 -8 -7 -7 -7 -7 -6 -6 -5 -5 -5 -4 -4 -4 -3 -3 -3 -3 -2 -2 -2 -2 -1 -1 -1 -1 ------- Run | Yrd Mat Min Mat Min Exi Min Mat Gar Fac Gar Fac Gar Fac Gar Fac Gar Fac Fac Upp Upp Res Gar Res Gar Res Gar Res Gar Acc Gar Acc Com Traps Triggered 51 | . 1 . . . . . 2 7 . 4 1 3 . 5 1 5 3 . . . 1 2 1 3 1 6 . 1 . 4 . . Indirectly 1 | . . . . . . . . . . . . . . . . . . . . . . . . . . 1 . . . . . . Trap Hack Attempts . | . . . . . . . . . . . . . . . . . . . . . . . . . . . . . . . . . Triggered . | . . . . . . . . . . . . . . . . . . . . . . . . . . . . . . . . . Disarmed . | . . . . . . . . . . . . . . . . . . . . . . . . . . . . . . . . . Reprogrammed . | . . . . . . . . . . . . . . . . . . . . . . . . . . . . . . . . . Reused . | . . . . . . . . . . . . . . . . . . . . . . . . . . . . . . . . . Traps Extracted . | . . . . . . . . . . . . . . . . . . . . . . . . . . . . . . . . . Installed 4 | . . . . 4 . . . . . . . . . . . . . . . . . . . . . . . . . . . . Triggered . | . . . . . . . . . . . . . . . . . . . . . . . . . . . . . . . . . Machines | -11 -10 -10 -9 -9 -9 -8 -8 -8 -7 -7 -7 -7 -6 -6 -5 -5 -5 -4 -4 -4 -3 -3 -3 -3 -2 -2 -2 -2 -1 -1 -1 -1 ---------- Run | Yrd Mat Min Mat Min Exi Min Mat Gar Fac Gar Fac Gar Fac Gar Fac Gar Fac Fac Upp Upp Res Gar Res Gar Res Gar Res Gar Acc Gar Acc Com Machines Disabled 145 | . . 4 5 . . . 3 4 1 5 6 7 14 5 . 5 29 7 . . . 6 2 9 1 8 . 12 2 6 3 1 Max in Single Turn 12 | . . 2 2 . . . 1 1 . 1 1 1 4 1 . 1 12 1 . . . 1 1 1 . 1 . 2 1 1 1 1 Garrison Access 3 | . . . . . . . . . . . . . . . . . 2 . . . . . . . . . . . . . 1 . Garrison Relay 37 | . . . . . . . . 2 . 4 . 4 . 5 . 3 . . . . . 3 . 4 . 4 . 4 . 4 . . Phase Generator 1 | . . . . . . . . . . . . . . . . . . . . . . . . . . . . 1 . . . . Machines Repaired . | . . . . . . . . . . . . . . . . . . . . . . . . . . . . . . . . . Machines Dismantled . | . . . . . . . . . . . . . . . . . . . . . . . . . . . . . . . . . Machines Sabotaged . | . . . . . . . . . . . . . . . . . . . . . . . . . . . . . . . . . Overloaded Fab Kills . | . . . . . . . . . . . . . . . . . . . . . . . . . . . . . . . . . Hacking | -11 -10 -10 -9 -9 -9 -8 -8 -8 -7 -7 -7 -7 -6 -6 -5 -5 -5 -4 -4 -4 -3 -3 -3 -3 -2 -2 -2 -2 -1 -1 -1 -1 --------- Run | Yrd Mat Min Mat Min Exi Min Mat Gar Fac Gar Fac Gar Fac Gar Fac Gar Fac Fac Upp Upp Res Gar Res Gar Res Gar Res Gar Acc Gar Acc Com Machines Accessed 78 | . 3 1 6 . 2 . 6 3 3 3 5 2 4 2 5 2 7 1 1 . 3 . 3 1 3 3 1 2 3 3 . . Terminals 53 | . 3 . 5 . . . 4 3 1 3 2 2 3 2 2 2 5 1 . . 2 . . 1 2 3 . 2 2 3 . . Fabricators . | . . . . . . . . . . . . . . . . . . . . . . . . . . . . . . . . . Repair Stations 5 | . . . 1 . . . . . 1 . 1 . . . . . 1 . . . . . 1 . . . . . . . . . Recycling Units 6 | . . . . . . . 1 . . . 1 . . . 2 . 1 . . . . . 1 . . . . . . . . . Scanalyzers . | . . . . . . . . . . . . . . . . . . . . . . . . . . . . . . . . . Garrison Access 10 | . . . . . . . 1 . 1 . 1 . 1 . 1 . . . . . 1 . 1 . 1 . 1 . 1 . . . Total Hacks 152 | . 12 1 21 . 5 . 19 3 5 4 9 2 8 2 10 3 18 1 1 . 5 . 3 1 5 3 1 4 3 3 . . Successful 81 | . 5 1 15 . 5 . 9 3 4 3 4 2 3 2 7 . 3 . 1 . 3 . 3 . 1 2 1 . 2 2 . . Failed 69 | . 6 . 5 . . . 10 . 1 1 5 . 5 . 3 3 15 1 . . 2 . . 1 4 1 . 4 1 1 . . Catastrophic 14 | . 1 . . . . . 2 . . . . . 1 . 1 . 3 1 . . . . . . 2 . . 2 . 1 . . Database Lockouts 2 | . 1 . 1 . . . . . . . . . . . . . . . . . . . . . . . . . . . . . Manual 63 | . 10 . 13 . 1 . 13 . 2 . 6 . 3 . 2 . 7 . . . 4 . 1 . . . . . 1 . . . Terminals 106 | . 12 . 15 . . . 15 3 3 4 4 2 7 2 4 3 11 1 . . 3 . . 1 4 3 . 4 2 3 . . Fabricators . | . . . . . . . . . . . . . . . . . . . . . . . . . . . . . . . . . Repair Stations 15 | . . . 6 . . . . . 1 . 2 . . . . . 5 . . . . . 1 . . . . . . . . . Recycling Units 11 | . . . . . . . 1 . . . 2 . . . 5 . 2 . . . . . 1 . . . . . . . . . Scanalyzers . | . . . . . . . . . . . . . . . . . . . . . . . . . . . . . . . . . Garrison Access 13 | . . . . . . . 3 . 1 . 1 . 1 . 1 . . . . . 2 . 1 . 1 . 1 . 1 . . . Terminal Hacks 41 | . 4 1 7 . 5 . 3 3 2 3 . 2 . 2 3 . 1 . 1 . . . . . . 2 . . . 2 . . Record 4 | . . . . . 4 . . . . . . . . . . . . . . . . . . . . . . . . . . . Prototype ID Bank 7 | . 1 . 5 . . . . . . . . . . . 1 . . . . . . . . . . . . . . . . . Open Door 6 | . . 1 . . . . . 1 . 1 . . . . . . . . 1 . . . . . . 1 . . . 1 . . Branch Access Points 1 | . . . 1 . . . . . . . . . . . . . . . . . . . . . . . . . . . . . Emergency Access Points 4 | . . . . . . . . 1 . 1 . . . 1 . . . . . . . . . . . 1 . . . . . . Alert Level 2 | . 1 . . . . . 1 . . . . . . . . . . . . . . . . . . . . . . . . . Unreport Threat 6 | . . . 1 . . . 2 . 1 . . . . . 1 . 1 . . . . . . . . . . . . . . . Locate Traps 2 | . 1 . . . . . . . . . . . . . 1 . . . . . . . . . . . . . . . . . Zone Layout 2 | . 1 . . . . . . . 1 . . . . . . . . . . . . . . . . . . . . . . . Garrison Registry 4 | . . . . . . . . 1 . 1 . 1 . . . . . . . . . . . . . . . . . 1 . . Patrol Navigation 2 | . . . . . . . . . . . . 1 . 1 . . . . . . . . . . . . . . . . . . Proto ID Catalog 1 | . . . . . 1 . . . . . . . . . . . . . . . . . . . . . . . . . . . Fabricator Hacks . | . . . . . . . . . . . . . . . . . . . . . . . . . . . . . . . . . Repair Station Hacks 6 | . . . 6 . . . . . . . . . . . . . . . . . . . . . . . . . . . . . Scan Component 3 | . . . 3 . . . . . . . . . . . . . . . . . . . . . . . . . . . . . Repair 3 | . . . 3 . . . . . . . . . . . . . . . . . . . . . . . . . . . . . Recycling Unit Hacks 7 | . . . . . . . 1 . . . 1 . . . 3 . 1 . . . . . 1 . . . . . . . . . Retrieve Matter 2 | . . . . . . . . . . . . . . . 2 . . . . . . . . . . . . . . . . . Retrieve Components 5 | . . . . . . . 1 . . . 1 . . . 1 . 1 . . . . . 1 . . . . . . . . . Scanalyzer . | . . . . . . . . . . . . . . . . . . . . . . . . . . . . . . . . . Garrison Access Hacks 10 | . . . . . . . 1 . 1 . 1 . 1 . 1 . . . . . 1 . 1 . 1 . 1 . 1 . . . Unlock Access 10 | . . . . . . . 1 . 1 . 1 . 1 . 1 . . . . . 1 . 1 . 1 . 1 . 1 . . . Unauthorized Hacks 17 | . 1 . 2 . . . 4 . 1 . 2 . 2 . . . 1 . . . 2 . 1 . . . . . 1 . . . Terminals 10 | . 1 . 2 . . . 2 . . . 1 . 2 . . . . . . . 1 . . . . . . . 1 . . . Assimilate 1 | . . . . . . . . . . . . . 1 . . . . . . . . . . . . . . . . . . . Botnet 9 | . 1 . 2 . . . 2 . . . 1 . 1 . . . . . . . 1 . . . . . . . 1 . . . Fabricators . | . . . . . . . . . . . . . . . . . . . . . . . . . . . . . . . . . Repair Stations 4 | . . . . . . . . . 1 . 1 . . . . . 1 . . . . . 1 . . . . . . . . . Mechanics 4 | . . . . . . . . . 1 . 1 . . . . . 1 . . . . . 1 . . . . . . . . . Recycling Units . | . . . . . . . . . . . . . . . . . . . . . . . . . . . . . . . . . Scanalyzers . | . . . . . . . . . . . . . . . . . . . . . . . . . . . . . . . . . Garrison Access 3 | . . . . . . . 2 . . . . . . . . . . . . . 1 . . . . . . . . . . . Restock 1 | . . . . . . . 1 . . . . . . . . . . . . . . . . . . . . . . . . . Eject 2 | . . . . . . . 1 . . . . . . . . . . . . . 1 . . . . . . . . . . . Data Cores Recovered 3 | . . . 2 . . . . . 1 . . . . . . . . . . . . . . . . . . . . . . . Used 1 | . . . . . . . . . 1 . . . . . . . . . . . . . . . . . . . . . . . Hacking Detections 54 | . 3 . 5 . . . 4 1 2 2 3 1 4 1 2 2 6 1 . . 2 . 2 1 2 3 1 2 3 1 . . Full Trace Events 1 | . . . . . . . . . . . . . . . . . . . . . . . . . . . . 1 . . . . Feedback Events . | . . . . . . . . . . . . . . . . . . . . . . . . . . . . . . . . . Feedback Blocked . | . . . . . . . . . . . . . . . . . . . . . . . . . . . . . . . . . Robot Schematics Acquired . | . . . . . . . . . . . . . . . . . . . . . . . . . . . . . . . . . Robots Built . | . . . . . . . . . . . . . . . . . . . . . . . . . . . . . . . . . Authchips . | . . . . . . . . . . . . . . . . . . . . . . . . . . . . . . . . . Time . | . . . . . . . . . . . . . . . . . . . . . . . . . . . . . . . . . Total Robot Build Rating . | . . . . . . . . . . . . . . . . . . . . . . . . . . . . . . . . . Part Schematics Acquired . | . . . . . . . . . . . . . . . . . . . . . . . . . . . . . . . . . Parts Built . | . . . . . . . . . . . . . . . . . . . . . . . . . . . . . . . . . Authchips . | . . . . . . . . . . . . . . . . . . . . . . . . . . . . . . . . . Time . | . . . . . . . . . . . . . . . . . . . . . . . . . . . . . . . . . Total Part Build Rating . | . . . . . . . . . . . . . . . . . . . . . . . . . . . . . . . . . Parts Repaired 3 | . . . 3 . . . . . . . . . . . . . . . . . . . . . . . . . . . . . Time 78 | . . . 78 . . . . . . . . . . . . . . . . . . . . . . . . . . . . . Parts Recycled . | . . . . . . . . . . . . . . . . . . . . . . . . . . . . . . . . . Recycled Matter . | . . . . . . . . . . . . . . . . . . . . . . . . . . . . . . . . . Retrieved Matter . | . . . . . . . . . . . . . . . . . . . . . . . . . . . . . . . . . Retrieved Components 16 | . . . . . . . 2 . . . 1 . . . 1 . 2 . . . . . 10 . . . . . . . . . Parts Scanalyzed . | . . . . . . . . . . . . . . . . . . . . . . . . . . . . . . . . . Part Schematics Acquired . | . . . . . . . . . . . . . . . . . . . . . . . . . . . . . . . . . Parts Damaged . | . . . . . . . . . . . . . . . . . . . . . . . . . . . . . . . . . Bothacking | -11 -10 -10 -9 -9 -9 -8 -8 -8 -7 -7 -7 -7 -6 -6 -5 -5 -5 -4 -4 -4 -3 -3 -3 -3 -2 -2 -2 -2 -1 -1 -1 -1 ------------ Run | Yrd Mat Min Mat Min Exi Min Mat Gar Fac Gar Fac Gar Fac Gar Fac Gar Fac Fac Upp Upp Res Gar Res Gar Res Gar Res Gar Acc Gar Acc Com Used RIF Installer 14 | . . . . . . . . 1 . 2 . 1 . 2 . 1 . . . . . 2 . 1 . 1 . 1 . 2 . . Hotswap 1 | . . . . . . . . . . 1 . . . . . . . . . . . . . . . . . . . . . . Code Merge 2 | . . . . . . . . . . . . . . . . . . . . . . 1 . 1 . . . . . . . . Command Fork 2 | . . . . . . . . . . . . . . 1 . . . . . . . . . . . . . . . 1 . . Threat Obfuscator 2 | . . . . . . . . . . 1 . . . . . . . . . . . 1 . . . . . . . . . . Signal Jammer 1 | . . . . . . . . . . . . . . 1 . . . . . . . . . . . . . . . . . . Zone Cloak 1 | . . . . . . . . . . . . . . . . . . . . . . . . . . 1 . . . . . . Watcher Feeds 1 | . . . . . . . . . . . . 1 . . . . . . . . . . . . . . . . . . . . Alert ID Control 1 | . . . . . . . . . . . . . . . . . . . . . . . . . . . . . . 1 . . Structural Interface 1 | . . . . . . . . . . . . . . . . 1 . . . . . . . . . . . . . . . . Autooverride 1 | . . . . . . . . . . . . . . . . . . . . . . . . . . . . 1 . . . . Robots Hacked 227 | . . . . . . . . 2 7 9 6 5 3 12 5 16 27 3 . . . 6 14 7 17 15 1 20 10 14 24 4 Non-combat 41 | . . . . . . . . 1 3 1 3 1 1 . 3 . 10 1 . . . . 4 . 4 . . . 5 . 4 . Combat 186 | . . . . . . . . 1 4 8 3 4 2 12 2 16 17 2 . . . 6 10 7 13 15 1 20 5 14 20 4 Autooverrided 12 | . . . . . . . . . . . . . . . . . . . . . . . . . . . . 1 1 3 5 2 Robot Hacks Applied 229 | . . . . . . . . 2 7 9 8 6 5 12 6 16 30 3 . . . 6 16 8 17 15 1 19 9 11 21 2 parse_system 4 | . . . . . . . . . . . 1 . . . . . 1 . . . . . . . . . . . . . 2 . drop_inventory 16 | . . . . . . . . . 1 . 2 . 1 . 2 . 1 1 . . . . 1 . 2 . . . 3 . 2 . recall_reinforcements 1 | . . . . . . . . . . . . . . . . . 1 . . . . . . . . . . . . . . . ignore_parts 1 | . . . . . . . . . . . . . . . . . 1 . . . . . . . . . . . . . . . purge_threat 8 | . . . . . . . . . . . 2 1 . . . . 3 . . . . . 2 . . . . . . . . . map_route 7 | . . . . . . . . . . . . . . . . . . . . . . . 1 . 2 . . . 2 . 2 . disable_shields 2 | . . . . . . . . . . . . . . . . . 2 . . . . . . . . . . . . . . . emergency_deploy 1 | . . . . . . . . . . . . . . . . . . . . . . . . . . . . . . 1 . . find_garrison 9 | . . . . . . . . . 1 . 1 . 2 . 1 . 3 1 . . . . . . . . . . . . . . disrupt_area 3 | . . . . . . . . . . . . . . . . 1 . . . . . . . . . 1 . 1 . . . . amplify_resonance 10 | . . . . . . . . . 1 . . . . . . 4 . . . . . . . . . 1 . 4 . . . . disable_weapons 1 | . . . . . . . . . . . . . . . . . . . . . . . . . . . . . . . 1 . overwrite_iff 44 | . . . . . . . . . 1 4 . 1 . 1 . 1 1 1 . . . . 2 4 2 7 . 5 1 5 7 1 formatsys_low 12 | . . . . . . . . 1 2 1 1 1 . . 1 . 4 . . . . . 1 . . . . . . . . . formatsys_high 105 | . . . . . . . . 1 1 4 1 2 2 11 2 10 12 . . . . 6 9 4 11 6 1 9 2 3 7 1 formatsys_deep 5 | . . . . . . . . . . . . 1 . . . . 1 . . . . . . . . . . . 1 2 . . Relay Couplers Released 169 | . . . . . . . 6 12 . 14 . 16 . 18 . 16 1 . . . 4 10 . 19 4 14 . 15 . 18 2 . Ejected 7 | . . . . . . . 3 . . . . . . . . . . . . . 4 . . . . . . . . . . . Machine Destruction 144 | . . . . . . . . 8 . 14 . 16 . 18 . 13 1 . . . . 10 . 15 . 14 . 15 . 18 2 . Programmers 18 | . . . . . . . 3 4 . . . . . . . 3 . . . . . . . 4 4 . . . . . . . Attached 73 | . . . . . . . . 3 2 6 . 6 . 5 . 9 2 . . . . 11 1 5 2 3 . 6 1 4 . 7 Merged Code Value 442 | . . . . . . . . . . . . . . . . . . . . . . 91 . 49 12 33 . 99 . 158 . . Fabnet Peak Effective % . | . . . . . . . . . . . . . . . . . . . . . . . . . . . . . . . . . Robots Rewired 30 | . . . . . . . . 2 . 1 . . . . . 4 . . . . . 3 1 1 . 7 . 7 . 4 . . Allies Hacked 18 | . . . . . . . . . . . . . . . . 2 1 . . . . 1 3 . . . . 4 1 5 . 1 Hacks Repelled 3 | . . . . . . . . . . . . . . . . . . . . . . . . . . . . . . 2 1 . Allies | -11 -10 -10 -9 -9 -9 -8 -8 -8 -7 -7 -7 -7 -6 -6 -5 -5 -5 -4 -4 -4 -3 -3 -3 -3 -2 -2 -2 -2 -1 -1 -1 -1 -------- Run | Yrd Mat Min Mat Min Exi Min Mat Gar Fac Gar Fac Gar Fac Gar Fac Gar Fac Fac Upp Upp Res Gar Res Gar Res Gar Res Gar Acc Gar Acc Com Total Allies 260 | . . . . . . . . 5 4 14 2 8 2 12 3 20 23 2 . . . 11 13 11 14 23 1 25 11 27 25 4 Largest Group 28 | . . . . . . . . 4 5 10 10 8 8 16 17 21 28 7 4 2 . 6 10 8 11 6 7 12 15 13 13 2 Highest-Rated Group 1058 | . . . . . . . . 81 113 373 361 238 211 482 532 830 1058 414 286 191 . 439 623 580 939 339 397 738 982 685 838 69 Highest-Rated Ally 183 | . . . . . . . . 23 32 80 77 55 34 47 49 68 142 142 142 142 . 116 95 119 183 99 64 119 116 119 119 69 Total Orders 37 | . . . . . . . . 1 3 2 5 3 1 1 1 1 4 2 . . . 2 . 2 . 1 . 2 2 2 2 . STAY 6 | . . . . . . . . . . . . . . . . . . 1 . . . 1 . 1 . . . . 1 1 1 . ROAM 1 | . . . . . . . . . . . . . . . . . . . . . . . . . . . . 1 . . . . FOLLOW 6 | . . . . . . . . . . . . . . . . . . . . . . 1 . 1 . . . 1 1 1 1 . AID 24 | . . . . . . . . 1 3 2 5 3 1 1 1 1 4 1 . . . . . . . 1 . . . . . . Ally Attacks 1637 | . . . . . . . . 4 29 37 59 70 25 46 19 121 260 57 13 8 . 50 91 35 143 101 10 107 47 163 130 12 Total Damage 54528 | . . . . . . . . 112 532 1667 1600 881 400 961 540 2814 8931 2245 438 341 . 2331 3143 1477 5636 4237 305 4593 1554 5693 3799 298 Kills 291 | . . . . . . . . 1 4 14 19 6 4 7 3 17 55 15 5 1 . 11 14 4 26 12 2 21 14 15 20 1 Allies Corrupted 18 | . . . . . . . . . . . 1 . 1 . 1 2 1 . . . . . 2 . 5 . . 2 . . 3 . Allies Melted 2 | . . . . . . . . . . . . . . . . . . . . . . 1 . . . 1 . . . . . . Intel | -11 -10 -10 -9 -9 -9 -8 -8 -8 -7 -7 -7 -7 -6 -6 -5 -5 -5 -4 -4 -4 -3 -3 -3 -3 -2 -2 -2 -2 -1 -1 -1 -1 ------- Run | Yrd Mat Min Mat Min Exi Min Mat Gar Fac Gar Fac Gar Fac Gar Fac Gar Fac Fac Upp Upp Res Gar Res Gar Res Gar Res Gar Acc Gar Acc Com Active Infowar (turns) . | . . . . . . . . . . . . . . . . . . . . . . . . . . . . . . . . . Robot Analysis Total . | . . . . . . . . . . . . . . . . . . . . . . . . . . . . . . . . . Derelict Logs Recovered 7 | . . 2 . 2 . . . . . . . . . . . . . . 2 1 . . . . . . . . . . . . Drone Launches . | . . . . . . . . . . . . . . . . . . . . . . . . . . . . . . . . . Drone Recoveries . | . . . . . . . . . . . . . . . . . . . . . . . . . . . . . . . . . Exploration | -11 -10 -10 -9 -9 -9 -8 -8 -8 -7 -7 -7 -7 -6 -6 -5 -5 -5 -4 -4 -4 -3 -3 -3 -3 -2 -2 -2 -2 -1 -1 -1 -1 ------------- Run | Yrd Mat Min Mat Min Exi Min Mat Gar Fac Gar Fac Gar Fac Gar Fac Gar Fac Fac Upp Upp Res Gar Res Gar Res Gar Res Gar Acc Gar Acc Com Turns Passed 31202 | 60 476 663 1080 267 443 393 822 1520 901 1372 1030 848 697 1207 398 1430 1462 547 1253 886 353 1801 974 1321 1548 1941 49 2142 900 1083 689 646 Spaces Moved 16168 | 51 271 339 497 163 273 203 300 800 502 817 709 452 435 707 275 792 876 263 364 254 206 821 547 693 830 946 20 969 467 534 347 445 Core 259 | 28 . . . . . . . . . . . . . . . . . . . . . . . . . . . . . . . 231 Treads 7535 | . 103 339 263 163 273 203 79 . . . . . . . . . . . 178 254 206 821 547 173 436 946 20 969 467 534 347 214 Legs 425 | 23 168 . 234 . . . . . . . . . . . . . . . . . . . . . . . . . . . . . Wheels 7949 | . . . . . . . 221 800 502 817 709 452 435 707 275 792 876 263 186 . . . . 520 394 . . . . . . . Hover . | . . . . . . . . . . . . . . . . . . . . . . . . . . . . . . . . . Flight . | . . . . . . . . . . . . . . . . . . . . . . . . . . . . . . . . . Fastest Speed 50 | 50 120 160 120 160 160 160 105 105 105 120 120 105 120 120 120 120 120 135 165 245 163 152 152 105 105 152 152 152 160 160 160 50 Average Speed 146 | 88 135 160 145 160 160 167 119 108 119 120 120 118 120 120 120 127 134 150 330 342 164 157 152 149 136 152 152 169 160 160 160 102 Slowest Speed 480 | 150 160 240 190 160 160 240 160 120 120 120 120 120 120 120 120 135 135 165 480 400 166 166 152 330 152 152 152 237 240 240 160 160 Overloaded Moves . | . . . . . . . . . . . . . . . . . . . . . . . . . . . . . . . . . Propulsion Burnouts . | . . . . . . . . . . . . . . . . . . . . . . . . . . . . . . . . . Robots Hopped . | . . . . . . . . . . . . . . . . . . . . . . . . . . . . . . . . . Potential Cave-ins . | . . . . . . . . . . . . . . . . . . . . . . . . . . . . . . . . . Cave-ins Triggered . | . . . . . . . . . . . . . . . . . . . . . . . . . . . . . . . . . Exploration Rate (%) 45 | 5 46 83 56 46 59 58 25 79 15 88 20 54 21 87 7 87 42 9 57 37 7 71 21 89 22 96 1 99 17 68 16 19 Regions Visited 32 Branch Regions 7 Pre-discovered Areas 3 | . . 1 . . 1 . . . . . . . . . . . . . . 1 . . . . . . . . . . . . Known Exits Taken 11 | . . . 1 . . . 1 . 1 . 1 . 1 . 1 . . . . . 1 . 1 . 1 . 1 . 1 . . . Unknown Exits Taken 11 | 1 1 1 . 1 1 1 . . . . . . . . . . 1 1 1 1 . . . . . . . . . . 1 . Scrap Searched 6 | . . 1 . . . 1 . . . . . . . . . . . . 2 2 . . . . . . . . . . . . Spaces Dug 136 | . . . . . . . . . 1 . 6 8 . 36 2 2 3 . 18 . . 13 5 . 3 . . 10 2 23 . 4 Terrain Destroyed 1328 | . . 28 105 . . . 3 20 19 81 18 60 18 98 4 14 159 36 50 2 . 169 35 28 59 36 . 193 12 42 8 31 Melee . | . . . . . . . . . . . . . . . . . . . . . . . . . . . . . . . . . Projectile 278 | . . . . . . . 3 . 7 . 10 6 4 11 4 12 13 15 2 2 . 21 11 9 41 20 . 43 12 8 8 16 AOE 1050 | . . 28 105 . . . . 20 12 81 8 54 14 87 . 2 146 21 48 . . 148 24 19 18 16 . 150 . 34 . 15 Terrain Rammed . | . . . . . . . . . . . . . . . . . . . . . . . . . . . . . . . . . Walls Destroyed . | . . . . . . . . . . . . . . . . . . . . . . . . . . . . . . . . . Machines Disabled . | . . . . . . . . . . . . . . . . . . . . . . . . . . . . . . . . . Actions | -11 -10 -10 -9 -9 -9 -8 -8 -8 -7 -7 -7 -7 -6 -6 -5 -5 -5 -4 -4 -4 -3 -3 -3 -3 -2 -2 -2 -2 -1 -1 -1 -1 --------- Run | Yrd Mat Min Mat Min Exi Min Mat Gar Fac Gar Fac Gar Fac Gar Fac Gar Fac Fac Upp Upp Res Gar Res Gar Res Gar Res Gar Acc Gar Acc Com Total 22038 | 64 321 414 729 167 280 225 715 1301 733 1155 850 710 585 961 332 1129 1089 352 403 266 221 1254 669 885 1086 1357 39 1359 590 729 475 593 Wait 3116 | . 8 29 112 . . 3 363 305 164 190 92 166 125 139 42 151 86 41 25 4 2 191 65 33 74 233 16 176 74 90 63 54 Move 16140 | 50 270 338 496 162 272 202 299 799 501 816 709 451 434 706 274 791 875 262 363 253 205 820 547 692 829 945 20 968 467 533 346 445 Hop . | . . . . . . . . . . . . . . . . . . . . . . . . . . . . . . . . . Pick Up 209 | 8 5 4 14 . 2 . 11 17 5 11 3 10 4 7 . 14 4 . . . 5 17 1 15 12 14 . 11 5 7 1 2 Fast Attach 113 | 4 2 3 6 . 1 1 3 3 2 2 1 . . . 2 . 3 2 4 5 1 11 1 13 14 8 . 10 2 4 4 1 Attach 108 | 2 . 2 4 . . 1 1 8 3 1 . 1 1 2 2 . 6 1 . . 2 10 1 20 9 8 . 7 1 1 . 14 Detach 36 | . . 1 . . . . . 1 . . . . . 1 . . 4 . 3 . 1 1 . 8 6 3 1 2 . 1 . 3 Swap 166 | . 4 4 9 . 2 . 6 15 9 8 5 12 . 17 . 14 10 2 1 . 2 10 4 5 10 5 . 2 2 5 2 1 Drop 178 | . 2 1 9 . 3 . 9 17 4 13 4 7 1 2 . 7 6 . . 1 3 22 2 2 17 9 1 13 5 9 4 5 Fire 1610 | . 29 29 78 1 . 17 23 94 44 59 36 45 20 79 11 70 92 44 7 3 . 90 43 95 114 111 1 158 31 72 50 64 Melee . | . . . . . . . . . . . . . . . . . . . . . . . . . . . . . . . . . Ram 5 | . . . . . . . . . . . . 1 . . . . . . . . . . . . . . . . . . . 4 Kick 2 | . 1 . 1 . . . . . . . . . . . . . . . . . . . . . . . . . . . . . Crush 15 | . . 3 . . . 1 . . . . . . . . . . . . . . . . 2 . . . . 2 2 3 2 . Escape Stasis 140 | . . . . . . . . 40 . 32 . 16 . 8 . 40 . . . . . . . . . 3 . 1 . . . . Rewire 196 | . . . . . . . . 2 1 23 . 1 . . 1 42 3 . . . . 82 3 2 1 18 . 9 1 4 3 . Trap 4 | . . . . 4 . . . . . . . . . . . . . . . . . . . . . . . . . . . . Miscellaneous . | . . . . . . . . . . . . . . . . . . . . . . . . . . . . . . . . . Route ------- -11/Scrapyard -10/Materials (discovered 2 exits: Mat / *Min) -10/Mines (discovered 2 exits: *Mat x2) -9/Materials (discovered 2 exits: *Mat / *Min) -9/Mines -9/Exiles -8/Mines -8/Materials -8/Garrison (discovered 4 exits: *Fac x3 / [Mat]) -7/Factory (discovered 3 exits: *Fac / [*Low] / Gar) -7/Garrison (discovered 3 exits: *Fac x3) -7/Factory (discovered 2 exits: *Fac / Gar) -7/Garrison (discovered 3 exits: *Fac x3) -6/Factory -6/Garrison (discovered 3 exits: *Fac x3) -5/Factory -5/Garrison (discovered 3 exits: *Fac x3) -5/Factory (discovered 2 exits: *Fac / [*Upp]) -4/Factory -4/Upper Caves -4/Upper Caves -3/Research (discovered 3 exits: Qua x2 / Gar) -3/Garrison (discovered 3 exits: *Res x3) -3/Research (discovered 4 exits: *Res x2 / *Qua / Gar) -3/Garrison (discovered 3 exits: *Res x3) -2/Research (discovered 3 exits: [*Tes x2] / Gar) -2/Garrison (discovered 3 exits: *Res x3) -2/Research -2/Garrison (discovered 3 exits: *Acc x3) -1/Access -1/Garrison (discovered 3 exits: [*Acc x3]) -1/Access -1/Command History --------- Turn | Location | Event 6 | -11/Scrapyard | Discovered new exit (range 15) 61 | -11/Scrapyard | Entered Materials 214 | -10/Materials | Discovered new exit (range 15) 302 | -10/Materials | Build established: Mutant 347 | -10/Materials | Discovered new exit (range 16) 452 | -10/Materials | Central database locked down 537 | -10/Materials | Entered Mines 588 | -10/Mines | Met a Derelict bent on vengeance 617 | -10/Mines | Received a Rocket Launcher from a helpful Derelict 862 | -10/Mines | Met a Derelict who couldn't figure out how to use a Trap Extractor 963 | -10/Mines | Learned Materials stockpile data 977 | -10/Mines | Discovered new exit (range 13) 1051 | -10/Mines | Learned location of Storage (-8) 1165 | -10/Mines | Discovered new exit (range 10) 1200 | -10/Mines | Entered Materials 1200 | -9/Materials | Evolved 2 slots: Propulsion x1, Utility x1 1260 | -9/Materials | Identified exit to Mines 1360 | -9/Materials | Central database locked down 1953 | -9/Materials | Repaired Lgt. Treads 1980 | -9/Materials | Repaired Lgt. Cannon 2008 | -9/Materials | Repaired Lgt. Treads 2078 | -9/Materials | Discovered new exit (range 16) 2280 | -9/Materials | Entered Mines 2301 | -9/Mines | Learned Materials garrison access intel 2309 | -9/Mines | Found a hidden stash of uninstalled traps 2387 | -9/Mines | A weapon hastily lodged in a ceiling crevice suddenly fell to the ground 2500 | -9/Mines | Learned 4 Materials zone layouts 2540 | -9/Mines | Deemed a non-threat by the Exiles lab entrance 2540 | -9/Mines | Discovered new exit (range 5) 2547 | -9/Mines | Entered Exiles 2586 | -9/Exiles | Met 8R-AWN 2615 | -9/Exiles | Met EX-HEX 2658 | -9/Exiles | Met EX-BIN 2693 | -9/Exiles | Aligned with FarCom system 2695 | -9/Exiles | Given EX-Vault access code 2733 | -9/Exiles | Opened EX-Vault 2744 | -9/Exiles | Found Trap Reconfigurator 2751 | -9/Exiles | Found Latent Energy Streamer 2788 | -9/Exiles | Warned to stay clear of 0b10 Research branches 2831 | -9/Exiles | Met EX-DEC 2839 | -9/Exiles | Learned location of Zion (-7) 2885 | -9/Exiles | Discovered new exit (range 14) 2990 | -9/Exiles | Left Exiles lab with Latent Energy Streamer 2990 | -9/Exiles | Entered Mines 3359 | -8/Mines | Discovered new exit (range 5) 3383 | -8/Mines | Entered Materials 3383 | -8/Materials | Evolved 2 slots: Utility x1, Weapon x1 3385 | -8/Materials | Loaded intel: 1 garrison access location 3702 | -8/Materials | Build established: Hacker-Mutant 4097 | -8/Materials | Identified exit to Garrison 4135 | -8/Materials | Build established: Hacker-Skirmisher 4205 | -8/Materials | Entered Garrison 4290 | -8/Garrison | Rescued a captive Derelict 4313 | -8/Garrison | Triggered checkpoint 4356 | -8/Garrison | Triggered checkpoint 4478 | -8/Garrison | System corruption reached 10% 4485 | -8/Garrison | P-60 Hacker assimilated allied TF-IAI(b) 4551 | -8/Garrison | Discovered new exit (range 10) 4573 | -8/Garrison | Triggered checkpoint 4713 | -8/Garrison | Discovered new exit (range 78) 4713 | -8/Garrison | Discovered new exit (range 20) 4713 | -8/Garrison | Discovered new exit (range 56) 4713 | -8/Garrison | Discovered new exit (range 21) 4776 | -8/Garrison | Triggered checkpoint 4825 | -8/Garrison | Installed Relay Interface Framework 4877 | -8/Garrison | Triggered checkpoint 4899 | -8/Garrison | Garrison Relay disabled 5231 | -8/Garrison | Build established: Bothacker-Tank 5642 | -8/Garrison | Garrison Relay disabled 5659 | -8/Garrison | Triggered checkpoint 5725 | -8/Garrison | Entered Factory 5725 | -7/Factory | Accompanied by 4 allies 5725 | -7/Factory | Evolved 2 slots: Utility x2 5777 | -7/Factory | Discovered new exit (range 9) 5869 | -7/Factory | Discovered new exit (range 7) 6092 | -7/Factory | Build established: Bothacker-Skirmisher 6454 | -7/Factory | P-60 Hacker assimilated allied Commando 3b 6538 | -7/Factory | Identified exit to Garrison 6626 | -7/Factory | Entered Garrison 6626 | -7/Garrison | Accompanied by 2 allies 6780 | -7/Garrison | Triggered checkpoint 6799 | -7/Garrison | Found embedded Infiltrators 6816 | -7/Garrison | Garrison Relay disabled 6882 | -7/Garrison | Triggered checkpoint 6889 | -7/Garrison | Triggered checkpoint 6934 | -7/Garrison | Triggered checkpoint 6996 | -7/Garrison | Triggered checkpoint 7062 | -7/Garrison | Expanded RIF knowledge: Hotswap 7106 | -7/Garrison | Garrison Relay disabled 7138 | -7/Garrison | Discovered new exit (range 14) 7230 | -7/Garrison | Triggered checkpoint 7293 | -7/Garrison | Discovered new exit (range 12) 7318 | -7/Garrison | Triggered checkpoint 7346 | -7/Garrison | Garrison Relay disabled 7638 | -7/Garrison | Expanded RIF knowledge: Threat Obfuscation 7660 | -7/Garrison | Discovered new exit (range 13) 7696 | -7/Garrison | Triggered checkpoint 7744 | -7/Garrison | Discovered new exit (range 18) 7744 | -7/Garrison | Discovered new exit (range 76) 7744 | -7/Garrison | Discovered new exit (range 43) 7755 | -7/Garrison | Garrison Relay disabled 7794 | -7/Garrison | Rescued a captive Derelict 7796 | -7/Garrison | Rescued a captive Derelict 7998 | -7/Garrison | Entered Factory 7998 | -7/Factory | Accompanied by 10 allies 8182 | -7/Factory | Discovered new exit (range 15) 8949 | -7/Factory | Garrison activated, responded to threat 9023 | -7/Factory | Identified exit to Garrison 9028 | -7/Factory | Entered Garrison 9028 | -7/Garrison | Accompanied by 7 allies 9074 | -7/Garrison | Garrison Relay disabled 9124 | -7/Garrison | Triggered checkpoint 9223 | -7/Garrison | Heavy support dispatched to Factory 9257 | -7/Garrison | Discovered new exit (range 88) 9257 | -7/Garrison | Discovered new exit (range 77) 9257 | -7/Garrison | Discovered new exit (range 34) 9261 | -7/Garrison | Garrison Relay disabled 9307 | -7/Garrison | Heavy support dispatched to Factory 9414 | -7/Garrison | Triggered checkpoint 9424 | -7/Garrison | Triggered checkpoint 9424 | -7/Garrison | Assimilated ARC 4a with formatsys_deep 9490 | -7/Garrison | Triggered checkpoint 9501 | -7/Garrison | Garrison Relay disabled 9530 | -7/Garrison | Expanded RIF knowledge: Watcher Feeds 9695 | -7/Garrison | Garrison Relay disabled 9716 | -7/Garrison | Triggered checkpoint 9743 | -7/Garrison | Heavy support dispatched to Factory 9801 | -7/Garrison | Build established: Botlord-Skirmisher 9811 | -7/Garrison | Lost 3 allies 9876 | -7/Garrison | Entered Factory 9876 | -6/Factory | Accompanied by 6 allies 9876 | -6/Factory | Evolved 2 slots: Utility x2 10507 | -6/Factory | Identified exit to Garrison 10573 | -6/Factory | Entered Garrison 10573 | -6/Garrison | Accompanied by 7 allies 10597 | -6/Garrison | Triggered checkpoint 10633 | -6/Garrison | Expanded RIF knowledge: Signal Jamming 10647 | -6/Garrison | Triggered checkpoint 10752 | -6/Garrison | Garrison Relay disabled 10772 | -6/Garrison | Garrison Relay disabled 10869 | -6/Garrison | Triggered checkpoint 10879 | -6/Garrison | Triggered checkpoint 10897 | -6/Garrison | Triggered checkpoint 10913 | -6/Garrison | Triggered checkpoint 10985 | -6/Garrison | Expanded RIF knowledge: Command Fork 11006 | -6/Garrison | Discovered new exit (range 10) 11031 | -6/Garrison | Triggered checkpoint 11166 | -6/Garrison | Spotted B-75 Beast 11172 | -6/Garrison | Allies destroyed B-75 Beast 11247 | -6/Garrison | Triggered checkpoint 11280 | -6/Garrison | Garrison Relay disabled 11363 | -6/Garrison | Triggered checkpoint 11385 | -6/Garrison | Discovered new exit (range 11) 11575 | -6/Garrison | Triggered checkpoint 11673 | -6/Garrison | Triggered checkpoint 11674 | -6/Garrison | Garrison Relay disabled 11726 | -6/Garrison | Discovered new exit (range 11) 11780 | -6/Garrison | Entered Factory 11780 | -5/Factory | Accompanied by 15 allies 11780 | -5/Factory | Evolved 2 slots: Utility x2 12091 | -5/Factory | Build established: Botlord-Tank 12117 | -5/Factory | Identified exit to Garrison 12133 | -5/Factory | Garrison activated, responded to threat 12173 | -5/Factory | Lost 5 allies 12178 | -5/Factory | Entered Garrison 12178 | -5/Garrison | Accompanied by 12 allies 12195 | -5/Garrison | Expanded RIF knowledge: Structural Interface 12256 | -5/Garrison | Triggered checkpoint 12329 | -5/Garrison | Discovered new exit (range 10) 12349 | -5/Garrison | Triggered checkpoint 12352 | -5/Garrison | Triggered checkpoint 12386 | -5/Garrison | Rescued a captive Derelict 12439 | -5/Garrison | Garrison Relay disabled 12505 | -5/Garrison | Build established: Botlord-Skirmisher 12590 | -5/Garrison | Triggered checkpoint 12591 | -5/Garrison | Discovered new exit (range 14) 12670 | -5/Garrison | Triggered checkpoint 12914 | -5/Garrison | Triggered checkpoint 12978 | -5/Garrison | P-70 Sage assimilated allied Disruptor 6a 13061 | -5/Garrison | Discovered new exit (range 14) 13178 | -5/Garrison | Triggered checkpoint 13208 | -5/Garrison | Garrison Relay disabled 13224 | -5/Garrison | Triggered checkpoint 13608 | -5/Garrison | Entered Factory 13608 | -5/Factory | Accompanied by 21 allies 13771 | -5/Factory | Assimilated ARC 6a with formatsys_deep 13816 | -5/Factory | Discovered new exit (range 10) 14333 | -5/Factory | Build established: Commander-Skirmisher 14508 | -5/Factory | First assault squad dispatched 14548 | -5/Factory | Cargo convoy interrupted 14628 | -5/Factory | Lost 21 allies 14690 | -5/Factory | Lost 4 allies 14892 | -5/Factory | Build established: Botlord-Skirmisher 15035 | -5/Factory | Discovered new exit (range 7) 15070 | -5/Factory | Entered another Factory area 15070 | -4/Factory | Accompanied by 7 allies 15070 | -4/Factory | Evolved 2 slots: Utility x2 15320 | -4/Factory | First assault squad dispatched 15459 | -4/Factory | Build established: Botlord-Tank 15601 | -4/Factory | Discovered new exit (range 5) 15617 | -4/Factory | Entered Upper Caves 15617 | -4/Upper Caves | Accompanied by 4 allies 15641 | -4/Upper Caves | Learned location of 1 exit from Research 15922 | -4/Upper Caves | Learned location of 1 exit from Research 16580 | -4/Upper Caves | Discovered new exit (range 8) 16696 | -4/Upper Caves | Entered a destroyed Warlord outpost 16870 | -4/Upper Caves | Entered another Upper Caves area 16870 | -4/Upper Caves | Accompanied by 2 allies 16987 | -4/Upper Caves | Learned location of Armory (-3) 17680 | -4/Upper Caves | Discovered new exit (range 14) 17756 | -4/Upper Caves | Entered Research 17756 | -3/Research | Evolved 2 slots: Propulsion x1, Utility x1 17757 | -3/Research | Identified exit to Quarantine 18090 | -3/Research | Identified exit to Garrison 18109 | -3/Research | Entered Garrison 18195 | -3/Garrison | Expanded RIF knowledge: Code Merge 18213 | -3/Garrison | Garrison Relay disabled 18234 | -3/Garrison | Triggered checkpoint 18369 | -3/Garrison | Spotted B-86 Titan 18413 | -3/Garrison | Assimilated Titan 8a with formatsys_high 18433 | -3/Garrison | Triggered checkpoint 18490 | -3/Garrison | Triggered checkpoint 18519 | -3/Garrison | Triggered checkpoint 18523 | -3/Garrison | Triggered checkpoint 18596 | -3/Garrison | Lost 3 parts (2u1w) 18777 | -3/Garrison | Triggered checkpoint 18792 | -3/Garrison | Garrison Relay disabled 18880 | -3/Garrison | Discovered new exit (range 12) 18942 | -3/Garrison | Spotted B-86 Titan 19019 | -3/Garrison | Triggered checkpoint 19135 | -3/Garrison | Discovered new exit (range 3) 19206 | -3/Garrison | Destroyed B-86 Titan 19523 | -3/Garrison | Triggered checkpoint 19552 | -3/Garrison | P-80 Master assimilated allied Beamer 8b 19713 | -3/Garrison | Found embedded Infiltrators 19722 | -3/Garrison | Garrison Relay disabled 19806 | -3/Garrison | Discovered new exit (range 13) 19838 | -3/Garrison | Expanded RIF knowledge: Threat Obfuscation 19910 | -3/Garrison | Entered Research 19910 | -3/Research | Accompanied by 6 allies 20160 | -3/Research | First assault squad dispatched 20281 | -3/Research | P-80 Master assimilated allied Veteran 8d 20427 | -3/Research | Discovered exit to Quarantine (range 37) 20476 | -3/Research | Discovered new exit (range 73) 20588 | -3/Research | Discovered new exit (range 4) 20805 | -3/Research | Lost 4 allies 20880 | -3/Research | Identified exit to Garrison 20884 | -3/Research | Entered Garrison 20884 | -3/Garrison | Accompanied by 5 allies 20945 | -3/Garrison | Spotted B-86 Titan 20962 | -3/Garrison | Triggered checkpoint 20963 | -3/Garrison | P-80 Master assimilated allied Veteran 8e 20977 | -3/Garrison | Destroyed B-86 Titan 20981 | -3/Garrison | Triggered checkpoint 21001 | -3/Garrison | Triggered checkpoint 21039 | -3/Garrison | Lost 6 allies 21062 | -3/Garrison | System corruption reached 10% 21070 | -3/Garrison | Destroyed 9 combat bots 21116 | -3/Garrison | Core integrity fell below 50% 21120 | -3/Garrison | Destroyed 7 combat bots 21130 | -3/Garrison | Lost 15 parts (2p4n6u3w) 21268 | -3/Garrison | Triggered checkpoint 21359 | -3/Garrison | Discovered new exit (range 12) 21371 | -3/Garrison | Expanded RIF knowledge: Code Merge 21396 | -3/Garrison | Triggered checkpoint 21423 | -3/Garrison | Garrison Relay disabled 21528 | -3/Garrison | Found embedded Infiltrators 21674 | -3/Garrison | Build established: Botlord-Mutant 21719 | -3/Garrison | Discovered new exit (range 10) 21736 | -3/Garrison | Triggered checkpoint 21779 | -3/Garrison | Garrison Relay disabled 21863 | -3/Garrison | Garrison Relay disabled 22046 | -3/Garrison | Build established: Botlord-Gunner 22067 | -3/Garrison | Rewired Executioner 22095 | -3/Garrison | Triggered checkpoint 22100 | -3/Garrison | Discovered new exit (range 12) 22205 | -3/Garrison | Entered Research 22205 | -2/Research | Accompanied by 8 allies 22205 | -2/Research | Evolved 2 slots: Utility x1, Weapon x1 22498 | -2/Research | Discovered new exit (range 15) 22518 | -2/Research | Build established: Botlord-Tank 22527 | -2/Research | Spotted B-90 Cyclops 22529 | -2/Research | Assimilated Cyclops 9a with formatsys_high 22687 | -2/Research | Spotted B-90 Cyclops 22698 | -2/Research | Allies destroyed B-90 Cyclops 22752 | -2/Research | Identified exit to Garrison 22837 | -2/Research | P-80 Master assimilated allied I8-4J6(x) 22839 | -2/Research | Garrison activated, responded to threat 22922 | -2/Research | Found Prototype Device 22922 | -2/Research | Identified Thermal Barrier 23036 | -2/Research | Discovered new exit (range 64) 23205 | -2/Research | First assault squad dispatched 23222 | -2/Research | Garrison activated, responded to threat 23253 | -2/Research | Lost 6 allies 23753 | -2/Research | Entered Garrison 23753 | -2/Garrison | Accompanied by 2 allies 23863 | -2/Garrison | Spotted Executioner 23863 | -2/Garrison | Spotted Executioner 23884 | -2/Garrison | Allies destroyed Executioner 23884 | -2/Garrison | Destroyed Executioner 23915 | -2/Garrison | Rewired Striker 23924 | -2/Garrison | Rewired Striker 23939 | -2/Garrison | Triggered checkpoint 23959 | -2/Garrison | Garrison Relay disabled 24073 | -2/Garrison | Spotted B-90 Cyclops 24078 | -2/Garrison | Triggered checkpoint 24093 | -2/Garrison | Triggered checkpoint 24133 | -2/Garrison | Lost 4 allies 24181 | -2/Garrison | Destroyed B-90 Cyclops 24360 | -2/Garrison | Found embedded Infiltrators 24379 | -2/Garrison | Triggered checkpoint 24383 | -2/Garrison | System corruption reached 10% 24413 | -2/Garrison | Garrison Relay disabled 24490 | -2/Garrison | Expanded RIF knowledge: Zone Cloak 24563 | -2/Garrison | Discovered new exit (range 14) 24774 | -2/Garrison | Triggered checkpoint 24798 | -2/Garrison | Triggered checkpoint 24842 | -2/Garrison | Destroyed 10 combat bots 24986 | -2/Garrison | Garrison Relay disabled 25040 | -2/Garrison | Discovered new exit (range 13) 25279 | -2/Garrison | Discovered new exit (range 14) 25349 | -2/Garrison | Triggered checkpoint 25388 | -2/Garrison | Spotted B-90 Cyclops 25418 | -2/Garrison | Destroyed B-90 Cyclops 25446 | -2/Garrison | Lost 5 allies 25595 | -2/Garrison | Garrison Relay disabled 25694 | -2/Garrison | Entered Research 25694 | -2/Research | Accompanied by 6 allies 25725 | -2/Research | Identified exit to Garrison 25735 | -2/Research | Garrison activated, responded to threat 25743 | -2/Research | Entered Garrison 25743 | -2/Garrison | Accompanied by 7 allies 25775 | -2/Garrison | Triggered checkpoint 25810 | -2/Garrison | Spotted Executioner 25818 | -2/Garrison | Allies destroyed Executioner 25830 | -2/Garrison | Rewired Executioner 25891 | -2/Garrison | Garrison Relay disabled 25997 | -2/Garrison | Spotted B-90 Cyclops 25999 | -2/Garrison | Triggered checkpoint 26004 | -2/Garrison | Destroyed Executioner 26010 | -2/Garrison | Destroyed B-90 Cyclops 26042 | -2/Garrison | Lost 6 allies 26166 | -2/Garrison | Triggered checkpoint 26229 | -2/Garrison | Triggered checkpoint 26388 | -2/Garrison | Triggered checkpoint 26391 | -2/Garrison | Discovered new exit (range 12) 26406 | -2/Garrison | Garrison Relay disabled 26506 | -2/Garrison | Spotted B-90 Cyclops 26535 | -2/Garrison | Spotted B-86 Titan 26542 | -2/Garrison | Rewired B-86 Titan 26561 | -2/Garrison | Allies destroyed B-86 Titan 26773 | -2/Garrison | Destroyed B-90 Cyclops 26805 | -2/Garrison | Lost 5 allies 26823 | -2/Garrison | Found Relay Coupler [Proto] 26831 | -2/Garrison | Found Relay Coupler [Proto] 26957 | -2/Garrison | Triggered checkpoint 27044 | -2/Garrison | Phase Generator disabled 27075 | -2/Garrison | Discovered new exit (range 13) 27116 | -2/Garrison | Expanded RIF knowledge: Autooverride 27225 | -2/Garrison | Triggered checkpoint 27240 | -2/Garrison | Garrison Relay disabled 27491 | -2/Garrison | Discovered new exit (range 10) 27625 | -2/Garrison | Triggered checkpoint 27639 | -2/Garrison | Garrison Relay disabled 27885 | -2/Garrison | Entered Access 27885 | -1/Access | Accompanied by 7 allies 27885 | -1/Access | Evolved 2 slots: Utility x2 28135 | -1/Access | First assault squad dispatched 28341 | -1/Access | Assimilated ARC 10a with formatsys_deep 28534 | -1/Access | Found Hellfire Missile Launcher 28541 | -1/Access | P-80 Master assimilated allied Warden 9p 28643 | -1/Access | Lost 3 allies 28778 | -1/Access | Identified exit to Garrison 28785 | -1/Access | Entered Garrison 28785 | -1/Garrison | Accompanied by 8 allies 28877 | -1/Garrison | Triggered checkpoint 28877 | -1/Garrison | Assimilated ARC 10b with formatsys_deep 28891 | -1/Garrison | Garrison Relay disabled 29015 | -1/Garrison | Triggered checkpoint 29019 | -1/Garrison | Triggered checkpoint 29031 | -1/Garrison | Spotted B-99 Colossus 29058 | -1/Garrison | Destroyed 14 combat bots 29058 | -1/Garrison | Allies destroyed B-99 Colossus 29085 | -1/Garrison | Lost 11 allies 29096 | -1/Garrison | Triggered checkpoint 29102 | -1/Garrison | Triggered checkpoint 29104 | -1/Garrison | Assimilated ARC 10c with formatsys_deep 29157 | -1/Garrison | Triggered checkpoint 29191 | -1/Garrison | Garrison Relay disabled 29225 | -1/Garrison | Discovered new exit (range 80) 29225 | -1/Garrison | Discovered new exit (range 53) 29225 | -1/Garrison | Discovered new exit (range 13) 29279 | -1/Garrison | Master 10a assimilated hostile G-73 Enforcer 29298 | -1/Garrison | Master 10a assimilated hostile G-73 Enforcer 29328 | -1/Garrison | Lost 5 allies 29401 | -1/Garrison | Expanded RIF knowledge: Alert ID Control 29431 | -1/Garrison | Triggered checkpoint 29462 | -1/Garrison | Garrison Relay disabled 29625 | -1/Garrison | Rewired Executioner 29629 | -1/Garrison | Rewired Executioner 29735 | -1/Garrison | Expanded RIF knowledge: Command Fork 29782 | -1/Garrison | Garrison Relay disabled 29868 | -1/Garrison | Entered Access 29868 | -1/Access | Accompanied by 6 allies 30019 | -1/Access | Lost 3 allies 30118 | -1/Access | First assault squad dispatched 30369 | -1/Access | Lost 15 allies 30504 | -1/Access | Spotted B-99 Colossus 30507 | -1/Access | Spotted B-99 Colossus 30516 | -1/Access | Discovered new exit (range 4) 30549 | -1/Access | Lost 6 allies 30557 | -1/Access | Entered Command 30914 | -1/Command | Build established: Botlord-Mutant 31038 | -1/Command | System corruption reached 10% 31110 | -1/Command | Lost 12 parts (2n6u4w) 31157 | -1/Command | Spotted M Guard 31158 | -1/Command | Spotted M Guard 31158 | -1/Command | Spotted Combat Programmer 31158 | -1/Command | Spotted Combat Programmer 31168 | -1/Command | Core integrity fell below 50% 31195 | -1/Command | Core integrity fell below 20% 31199 | -1/Command | System corruption reached 30% 31203 | -1/Command | Destroyed by H-88 Terminator with KE Penetrator Last Messages --------------- 31183_ Identified Enh. Hardcell Cannon. 31189_ ZHZSHA>:RTA 31192_ Slammed into P-80 Master. 31195_ G-73 Enforcer springs to life. 31197_ P-80 Master resets G-73 Enforcer, system corruption cleaned. 31197_ Relay Coupler [Specialist] destroyed. 31198_ Penetrated by Slug. 31198_ Relay Coupler [Proto] destroyed. 31199_ Relay Coupler [Demolisher] destroyed. 31201_ Relay Coupler [Brawler] blown off. 31201_ Relay Coupler [NC] blown off. 31201_ Relay Coupler [Sentry] blown off. 31201_ E-15 Imp destroyed. 31202_ Slug penetrates Earth. 31202_ Slug penetrates Wall. Map ----- +----------------------------------------------------+ | ?????????????????????? ?? ???????????????# | | ?????????????????????? ?? ???????????????# | | ?????????????????#/#??#/#?#/#???????????????# | | ?????????????????# #??# #?# #???????????????# | | ?????????????????# #??# #?# ##??????????????# | | ????????????????## #### ### "### #??????????# | | ????????????????#" #??????????# | | ????????????????#"#######p/"######??????????# | | ????????????????##??????# gp#???????????????# | | ????????????????????????#p ##??????????????# | | ????????????????????????# "???????????????# | | ????????????????????????#p #???????????????# | | ????????????????????????# #???????????????# | | ????????????????????????# #??????????????# * | | ????????????????????????# #??????????????## | | ????????????????????????# #???????????????# | | ????????????????????????# #???????????????###"## | | ????????????????????????# #?????????????????# ## | | ????????????????????????# Y #?????????????????##?? | | ????????????????????????# % #????????????????????? | | ????????????????????????#Y #????????????????????? | | ????????????????????????# #????????????????????? | | ????????????????????????#e #????????????????????? | | ????????????????????????# #????????????????????? | | ????????????????????????# #????????????????????? | | ????????????????????????#@ #????#????#??????????? | | ????????????????????????# #### #### #??????????? | | ??????????????????????### h # #??????????? | | ?????????????????#"""## # ####?#####??? | | ?????????????????# # # # #?# #??? | | ?????????????????# ## Wh ### #### | | ?????????????????# h / | | ?????????????????# / | | ?????????????????# / | | ?????????????????# / | | ?????????????????# / | | ?????????????????# ### ### W ### ### #### | | ?????????????????######?# #?# #?# #?# #??# | | ????????????????????????#####?#####?#####?#####??# | | ?????????????????????????????????????????????????# | | ?????????????????????????????????????????????????# | | ?????????????????????????????????????????????????# | | ?????????????????????????????????????????????????# | | ?????????????????????????????????????????????????# | | ?????????????????????????????????????????????????# | | ?????????????????????????????????????????????????# | | ????????????????????????????????????????????????? | | ?????????????????????????????????????????????????? | | ?????????????????????????????????????????????????? | | ?????????????????????????????????????????????????? | +----------------------------------------------------+ Best States ------------- Heat Dissipation 78 Energy Generation 25 Energy Capacity 350 Matter Stores 466 Matter Capacity 550 Sight Range 16 Terrain Scan Density 10 Armor Coverage 1650 Resistance: TH 50 Resistance: EM 25 Utility Shielding 66 Weapon Cycling 25 Phase Shifting 15 Evasion (%) 55 Launcher Accuracy 40 Target Analysis 8 Recoil Reduction 4 Kinecelleration 40 Offensive Hacking 30 Defensive Hacking 10 Relay Coupler Types 9 Relay Coupler Value 389 Item Schematics ----------------- None Robot Schematics ------------------ None Fabricated ------------ Nothing Repaired ---------- Lgt. Treads | 12% | -9/Materials Lgt. Cannon | 50% | -9/Materials Lgt. Treads | 47% | -9/Materials Alien Tech Used ----------------- None Achievements -------------- None Challenges ------------ None Game ------ Seed AssembledActiveDatajack Manual? 0 Play Time 06:01:18 Cumulative 355.3 hours Start 2025.08.13 @ 22:42:10 End 2025.08.14 @ 04:46:28 Sessions 1 Manual Loads 0 Difficulty Rogue Special Mode None Game No. 171 Rogue 171 Adventurer 0 Explorer 0 Win Type - Total 8 Types 5/0/2/0/0/0/0/0/0/1 Lore% 82 Gallery% 82 Achievement% 69 Wizard Run 0 Options --------- Layout 1 ASCII 0 Keyboard 0 Movement Mouse Keybinds 0 Fullscreen 1 Font 24/Smallcaps Map View 50x35 Zoom Use 0% Tactical HUD 1 Map Filters NONE Filters NONE Steam 1 RUN: e670616a-5fc3-4830-8a90-b2e4932eb62b